{"text_format":"1","workbook":"xlsx","n_sheets":23,"sheets":["Cover Page","Contents","Facility Info","Operational Summary","Operational Data","Perf. Form 1 ","Energy Form 1","Permit Compliance","Permit Compliance (2)","Improvements","Public Liasion","Residue Quality ","Water","Air (periodic)","Air (CEMS)","HCl","SO2","NOx","TOC","Particulates","CO 95% 10 min","NH3","N2O"],"not_rendered":{"charts":8,"images":2,"macros":1,"external_links":1,"defined_names":23,"comments":0,"pivot_tables":0},"unopened":[],"bounds":{"document_bytes":16777216,"sheet_cells":100000,"rows_first":2000,"rows_last":500,"rows_between":2000,"halvings":0,"cell_chars":16384,"cell_head_chars":4096},"cells_cut":0,"cells_raw":0,"read":"whole","date_system":"1900"}

{"sheet":"Cover Page","index":0,"n_rows":53,"n_cols":14,"rows_kept":53,"cut":false,"hidden":false,"merged":[[48,2,48,3],[48,6,48,8],[52,2,52,3],[36,1,36,8],[40,2,40,8],[42,2,42,4],[44,2,44,4],[46,2,46,3],[46,6,46,8],[13,13,18,15],[34,1,34,8],[0,3,5,6],[7,1,23,8],[28,1,28,8],[30,1,30,8],[32,1,32,8]]}
[null,null,null,"Picture"]
[null,null,null,null,null,null,null,null,null,null,null,null,null,"Version 2.1 11/11/19"]
[]
[]
[]
[]
[]
[null,"Add photo"]
[]
[]
[]
[]
[null,null,null,null,null,null,null,null,null,null,null,null,null,"Notes:"]
[null,null,null,null,null,null,null,null,null,null,null,null,null,"This template may require adjustments by individual operators to meet specific reporting requirements as defined in the site Permit(s)"]
[]
[]
[]
[]
[]
[]
[]
[]
[]
[]
[]
[]
[]
[]
[null,"Annual Performance Report 2023"]
[]
[null,"Permit PPC/A/1003157/CP01 (As varied)"]
[]
[null,"MVV Environment Baldovie Ltd"]
[]
[null,"Lines 1, 2 and 3 "]
[]
[null,"MVV Environment Baldovie Ltd"]
[]
[null,"Year:",2023]
[]
[null,"Address:","Forties Rd, DD4 0NS, Dundee"]
[]
[null,"Tel: "]
[]
[null,"Email: "]
[]
[null,"Prepared by:",null,null,null,"Position:"]
[]
[null,"Approved by:",null,null,null,"Position:"]
[]
[null,"Version:",1]
[]
[null,"Issue Date:","2024-01-31"]

{"sheet":"Contents","index":1,"n_rows":44,"n_cols":11,"rows_kept":44,"cut":false,"hidden":false,"merged":[[43,0,46,9],[36,1,36,6],[37,1,37,6],[38,1,38,6],[39,1,39,6],[40,1,40,6],[41,1,41,6],[35,1,35,6],[21,1,21,6],[22,1,22,6],[23,1,23,6],[26,1,26,6],[27,1,27,6],[28,1,28,6],[29,1,29,6],[30,1,30,6],[31,1,31,6],[34,1,34,6],[20,1,20,6],[9,1,9,6],[10,1,10,6],[11,1,11,6],[12,1,12,6],[13,1,13,6],[14,1,14,6],[15,1,15,6],[16,1,16,6],[17,1,17,6],[18,1,18,6],[19,1,19,6],[4,10,7,14],[8,1,8,6],[3,1,3,6],[4,1,4,6],[5,1,5,6],[6,1,6,6],[7,1,7,6]]}
[{"$f":"+'Cover Page'!$B$29","v":"Annual Performance Report 2023"},null,null,null,{"$f":"+'Cover Page'!$B$33","v":"MVV Environment Baldovie Ltd"}]
[]
["Contents",null,null,null,null,null,null,null,null,null,"Notes:"]
["Section","Subject",null,null,null,null,null,"Page ",null,null,"Section references and Page nos. to be inserted"]
[null,"Facility Information",null,null,null,null,null,3,null,null,"Sections and Subjects may require adjustment by individual operators to meet specific reporting requirements as defined in the sites Permit(s)"]
[null,"Operational Summary",null,null,null,null,null,5]
[null,"Operational Data",null,null,null,null,null,7]
[null,"Performance Form 1",null,null,null,null,null,9]
[null,"Energy Form 1",null,null,null,null,null,11]
[null,"Permit Compliance",null,null,null,null,null,12]
[null,"Improvements",null,null,null,null,null,15]
[null,"Public Liasion",null,null,null,null,null,16]
[null,"Residue Quality",null,null,null,null,null,19]
[null,"Emissions to Water",null,null,null,null,null,20]
[null,"Emissions to Air (periodically monitored)",null,null,null,null,null,21]
[null,"Emissions to Air (continuously monitored)",null,null,null,null,null,23]
[null,"Hydrogen Chloride emissions",null,null,null,null,null,24]
[null,"Sulphur Dioxdie emsissions",null,null,null,null,null,25]
[null,"Oxides of Notrigen emissions",null,null,null,null,null,26]
[null,"Total Organic Carbon emissions",null,null,null,null,null,27]
[null,"Particulate Matter emissions",null,null,null,null,null,28]
[null,"Carbon Monoxide emissions",null,null,null,null,null,29]
[null,"Ammonia emissions",null,null,null,null,null,30]
[null,"Nitrous Oxide emissions ",null,null,null,null,null,31]
[]
["Version Control"]
["Section","Information",null,null,null,null,null,"Date"]
[]
[]
[]
[]
[]
[]
["Distribution"]
["Copy","Name, Role",null,null,null,null,null,"No."]
[]
[]
[]
[]
[]
[]
[]
[]
["This report is required under the Industrial Emissions Directive’s Article 55(2) requirements on reporting and public information on waste incineration plants and co-incineration plants, which require the operator to produce an annual report on the functioning and monitoring of the plant and make it available to the public. "]

{"sheet":"Facility Info","index":2,"n_rows":45,"n_cols":26,"rows_kept":45,"cut":false,"hidden":false,"merged":[[4,0,17,8],[21,0,53,8],[4,10,13,13],[21,10,30,13]]}
[{"$f":"+'Cover Page'!$B$29","v":"Annual Performance Report 2023"},null,null,null,{"$f":"+'Cover Page'!$B$33","v":"MVV Environment Baldovie Ltd"}]
[]
["Plant Description and Design",null,null,null,null,null,null,null,null,null,"Notes:"]
[]
["The MVV Environment Baldovie Ltd (MEB) Energy from Waste (EfW) facility is located on the northeasterly outskirts of Dundee, Scotland. The facility features two bubbling fluidised bed boilers, each with a thermal output of 17 MWth, firing 7.5 tph of waste per unit. The boilers are operated on refuse-derived fuel which is prepared on-site through the treatment of household and industrial waste which is received at the site from the locality, primarily from Dundee and Angus Councils.\n\nThe steam generated by the boilers is supplied to a condensing steam turbine for the generation of up to 10.5 MWe of electrical power. The power is generated at 11 kV and after supplying power to run the plant, the balance is exported directly to the local Distribution Network Operator. The plant was constructed from 1998 to 2000 and has been in operation since March 2000 with various plant improvements and modifications made since operations commenced.\n\nSince the facility was acquired by MVV Umwelt in November 2018, significant investment in replacement and upgraded equipment has been made, resulting in improved reliability and efficiency, together with consistent and sustainable improvement in environmental performance. \n\nMVV have constructed a new Combined Heat and Power (CHP) facility using moving grate technology alongside and to the south of the existing fluidised bed plant. This plant has been fully commissioned and is now regulated under full permit conditions from the 1st of January 2022. A consolidated permit PPC/A/1003157/CP01 was issued on the 3rd of December 2023 in line with the changes to the waste incineration BAT conclusions\n\nThe plant can supply up to 20 tonnes of steam for process use from the steam turbine extraction pass-out. This is in addition to the capability to export 9.9 MWe should the steam pass-out not be used. \n\nThe operation of both plants is regulated under a common PPC Permit PPC/A/1003157 (As varied) with a permit variation granted on the 23rd of December 2020 to continue the operation of the fluidised bed plant alongside the new moving grate plant for a period of up to ten years. A consolidated permit was issued on the 3rd of December in line with the changes to the waste incineration BAT conclusions.\n\nThe application of Best Available Techniques (BAT) will continuously be reviewed due to the transition to operating both plants and within the current year, MEB will be required to demonstrate that the requirements of the recent BAT Ref for Incineration of Waste are achievable for both plants.",null,null,null,null,null,null,null,null,null,"Include summary of plant design, design capacity, no. of combustion lines, electrical and heat capacity and any other general information that descibes the facility, its location and purpose "]
[]
[]
[]
[]
[]
[]
[]
[]
[]
[]
[]
[]
[]
[]
["Summary of Operational Processes and Procedures"]
[]
["The Lines 1&2 Fluidised Bed Plant comprises the following units:\n\nTwo bubbling fluidised bed incinerators, for the incineration of non-hazardous waste at temperatures above 850oC, each capable of burning up to 10 tonnes of waste an hour.\n\nWaste reception, inspection, preparation, and storage areas, comprising: a tipping hall, shredder;2 hammer mills; a refuse-derived fuel store; waste conveyor system; and metal recovery systems, comprising metal separation and eddy current separation.\n\nBoiler water treatment system comprising a cooling tower and associated pipework and heat exchangers. \nGas cleaning and conditioning units on each line comprise cyclone separators; carbon and lime injection; an ammonia SNCR system; and a bag filtration plant.\n\nAn odour abatement unit comprising activated carbon adsorption filters.\n\nResidue treatment and storage areas comprise a cyclone ash silo with a capacity of 60m3; a filter ash silo with a capacity of 60m3; and a bed ash handling system.\n\nA turbine and electrical generator supply power to the national grid.\n\nThe line 3 construction project under commissioning was officially handed over on the 19th of January 2022. Full Permit conditions were implemented by SEPA on the 1st of January 2022.\n\n\n\n\n\nThe Line 3 Moving Grate EFW CHP plant comprises the following units:\n\nThe waste reception building comprises a tipping hall with a waste delivery pit of 1,161 m3 capacity, a single waste storage bunker of 4,413m3 capacity, a feed hopper and a quarantine area, all within an enclosed building fitted with a fast-acting roller shutter door and self-closing louvres;\n\nA single inclined reciprocating moving air-cooled grate incinerator for the incineration of non-hazardous waste at temperatures above 850°C, comprising a four-pass vertical water tube boiler, capable of incinerating up to 153,216 tonnes per annum, (typically 110,000 tonnes per annum based on a design point throughput of 13.7 t/hr at LCV10.5MJ/kg, and operational availability of 8000 hours);\n\nA heat recovery boiler in which heat from the combustion gases is recovered, to generate superheated steam passed to a steam turbine and associated electrical generator, capable of generating up to 8.7MWe for export to the National Grid. Steam is extracted from the turbine and fed into a steam network for export of up to 19.58 MWth to other users;\n\nA demineralised water production plant, capable of producing 23m3/hr and comprising ion exchange demineralisation.\n\nA cooling system, comprising a carbon steel and aluminium finned Air Cooled Condenser (ACC) and associated pipework;\n\nFlue gas cleaning and conditioning systems, comprising: a urea Selective Non-Catalytic Reduction (SNCR) system to control NOx emissions; dry scrubbing by calcium hydroxide (lime) injection for the abatement of acid gases and powdered activated carbon (PAC) injection for the abatement of dioxins/furans, volatile organic compounds (VOCs) and heavy metals; and a bag filtration plant for the removal of particulate matter. The flue gas is discharged to the atmosphere via an induced draft (ID) fan through a 90m stack;\n\nAsh residues treatment and storage, comprising incinerator bottom ash (IBA) collection hoppers, conveying system, a water-filled quenching system and storage in a bunker with a capacity of 356m3; \n\nAir pollution control residue (APCr) collection hoppers, conveyors and a storage silo, with a capacity of 160m3 and associated tanker discharge valve;\n\nProcess Water collection systems, comprising a Clean Water collection pit, for the collection of Process Water from the boiler blow-down drain, regeneration and sampling of demineralised water, and return condensate\n",null,null,null,null,null,null,null,null,null,"Include summary of key processes and procedures such as (but not limited to); waste reception, control rooms, grate, bed and bolier, energy & heat  generation, cooling systems, residue management, emission controls, health and safety systems, maintenance"]
[]
[]
[]
[]
[]
[]
[]
[]
[]
[]
[]
[]
[]
[]
[]
[]
[]
[]
[]
[]
[null,null,null,null,null,null,null,null,null,null,null,null,null,null,null,null,null,null,null,null,null,null,null,null,null,{"$f":"Z44","v":0}]
[]
[null,null,null,null,null,null,null,null,null,null,null,null,null,null,null,null,null,null,null,null,null,null,null,null,null,{"$f":"9000*0.13","v":1170}]

{"sheet":"Operational Summary","index":3,"n_rows":31,"n_cols":11,"rows_kept":31,"cut":false,"hidden":false,"merged":[[4,0,26,8],[30,0,51,8],[4,10,13,13],[30,10,39,13]]}
[{"$f":"+'Cover Page'!$B$29","v":"Annual Performance Report 2023"},null,null,null,{"$f":"+'Cover Page'!$B$33","v":"MVV Environment Baldovie Ltd"}]
[]
["Summary of Plant Operations and Maintenance during the reporting year",null,null,null,null,null,null,null,null,null,"Notes:"]
[]
["Boilers 1 and 3 saw an increase in hours of waste combustion during the 2023 period compared to 2022. Line 1 increased by 7.35% and Line 3 had a minimal increase of 0.25% in the hours of waste combustion. Line 2 had a decrease in hours of waste combustion in comparison to 2022 with a decrease of 1.44%. \n\nThe total power generation saw a minimal decrease compared to 2022 of 0.06%. The power exported decreased in comparison to 2022 by 4%, as the power used on site increased by 16.9% compared to 2022. The power used on site increased although the imported power decreased by 54.25% compared to 2022.\n\nThe mass of mixed municipal/bulky waste increased by 40.2% in comparison to 2022, this increase led to a decrease in the commercial and industrial waste input by 21.64%. The increase in mixed municipal/bulky waste is a result of new customers. In total, the waste input increased by a small percentage of 3% compared to 2022.\n\t\nUnplanned Downtime:\n\nLine 1 & 2: Most of the unplanned downtime was a result of equipment defects, bed agglomerations and tube leaks.\n\nLine 3: downtime caused by crane maintenance, Boiler overpressure events, and blockages within the ash handling system.\n\nPlanned Downtime:\n\nThe Lines 1 & 2 spring maintenance outage for Lines 1 & 2 started on the 12th of March and ended on the 27th, the following works were completed:\n\nHammermill 1; mill infeed replacement (chain, lammels, and sealings), collecting conveyor belt replaced and containment work. Hammermill 2; MSW infeed conveyor complete replacement. North screw hard facing. Tunnel belt: new E-stop fitted. Inclined belt; new E-stop fitted, NDE bearings and shaft replacement. \n\nLine 1 works: new design scalping roller installed, complete new fuel chute installed, cleaning (furnace, superheaters, economisers, FGT), major refractory replacement on the bottom furnace, NDT and pressure parts work, various works on the fuel feed system, FGT bag house repairs.\n\nLine 2: cleaning (furnace, superheaters, economisers, FGT), refractory works, NDT and pressure parts work, various works on the fuel feed system, ID fan balance.\n\nThe Lines 1 & 2 autumn maintenance outage for Line 1&2 started on the 26th of September and finished on the 11th of October, the following works were completed:\n\nHammermill 1: Replaced grates and fixed teeth, Hammermill 2; replace grates, fixed teeth, mill infeed conveyor, force feeder and DE rotor bearing. South screw hard facing and new catenary cable installation. Inclined chain complete replacement, flexowell belt complete replacement, slide belt complete replacement.\n\nLine 1 works: Fuel chute repairs, cleaning (furnace, superheaters, economisers, FGT), minor refractory works in the furnace, NDT and pressure parts work, various works on the fuel feed system, various boiler tube replacements following internal NDT, sprinkler system service.\n\nLine 2 works: cleaning (furnace, superheaters, economisers, FGT), Major Refractory works in the furnace (complete bottom furnace block replaced), NDT and pressure parts work, various works on the fuel feed system, ID fan-balanced.\n\nThe Line 3 annual outage started on the 15th of May and was completed on the 1st of June, the following work was completed:\n\nFurnace grate works, furnace refractory works, superheater cleaning and repair works, economiser repair works, shower cleaning, soot blower and ball shot cleaning systems serviced, valve services, turbine, and generator inspections, CEMS servicing, service crane busbar replacement, FGT cleaning, inspections, and minor remedial works.",null,null,null,null,null,null,null,null,null,"Include summary of key operational and/or mainteanance activity undertaken in the year, such as any major component upgrades and/or replacements "]
[]
[]
[]
[]
[]
[]
[]
[]
[]
[]
[]
[]
[]
[]
[]
[]
[]
[]
[]
[]
[]
[]
[]
["Summary of Residue Handling for the reporting year"]
[]
["As per the Waste Residue Management Plan stipulated in the Permit condition 8.1.1. Compliance is in place with waste carrier licensed specialist contractors that transport all ash residues offsite with the duty of care audits conducted.",null,null,null,null,null,null,null,null,null,"Include in here a summary of residue handling regimes and destinations "]

{"sheet":"Operational Data","index":4,"n_rows":61,"n_cols":8,"rows_kept":61,"cut":false,"hidden":false,"merged":[[32,1,37,1],[29,2,29,5],[29,6,29,7],[3,1,3,2],[7,1,19,1],[22,1,25,1],[27,1,28,1]]}
[{"$f":"+'Cover Page'!$B$29","v":"Annual Performance Report 2023"},null,null,null,{"$f":"+'Cover Page'!$B$33","v":"MVV Environment Baldovie Ltd"}]
[]
["Operational Data"]
["Plant Size",34,null,"tonnes pa",54,"MWth",20,"MWe"]
["No. of combustion lines",3,null,"No. of Turbines:",null,2]
[]
["Waste types received","Unit","Q1","Q2","Q3","Q4","Year Total","%"]
["Household / Local Authority","tonnes",18500.38,27815.09,20781.68,35360.42,{"$f":"SUM(C8:F8)","v":102457.56999999999},{"$f":"IF(G8>0,G8/$G$18,\"-\")","v":0.54523396684892467}]
["Commercial & Industrial ",null,29071.919999999998,21544.46,17484.54,17356.38,{"$f":"SUM(C9:F9)","v":85457.3},0.45476603315107528]
["Hazardous ",null,null,null,null,null,0,"-"]
["Clinical",null,null,null,null,null,0,"-"]
["Waste wood (biomass) ",null,null,null,null,null,0,"-"]
["Refuse derived fuel ",null,null,null,null,null,0,"-"]
["Solid recovered fuel ",null,null,null,null,null,0,"-"]
["Other [Please specify]",null,null,null,null,null,0,"-"]
["Other [Please specify]"]
["Other [Please specify]"]
["Total waste received",null,{"$f":"SUM(C8:C17)","v":47572.3},{"$f":"SUM(D8:D17)","v":49359.55},{"$f":"SUM(E8:E17)","v":38266.22},{"$f":"SUM(F8:F17)","v":52716.800000000003},{"$f":"SUM(G8:G17)","v":187914.87},{"$f":"IF(G18>0,G18/$G$18,\"-\")","v":1}]
["Rejected Waste ",null,null,null,null,null,{"$f":"SUM(C19:F19)","v":0},{"$f":"IF(G19>0,G19/$G$18,\"-\")","v":"-"}]
["Waste transferred out",null,null,null,null,null,{"$f":"SUM(C20:F20)","v":0},{"$f":"IF(G20>0,G20/$G$18,\"-\")","v":"-"}]
[]
["Energy Useage / Export","Unit","Q1","Q2","Q3","Q4","Year Total","KWh/te"]
["Power Generated","MWh",37072,35064,38874,36121,{"$f":"SUM(C23:F23)","v":147131},{"$f":"IF(G23>0,G23*1000/$G$18,\"-\")","v":782.96624423602032}]
["Power Exported",null,30944,28437,32242,30167,{"$f":"SUM(C24:F24)","v":121790},{"$f":"IF(G24>0,G24*1000/$G$18,\"-\")","v":648.11262674422733}]
["Power Used on site",null,6128,6627,6633,5973,{"$f":"SUM(C25:F25)","v":25361},134.96004866458946]
["Power Imported",null,181.05220000000006,211.88470000000018,61.780999999999992,158.90440000000009,{"$f":"SUM(C26:F26)","v":613.62230000000034},3.2654270521539903]
["Parasitic Load","%",{"$f":"IF(C23>0,1-C24/(C23+C26),\"-\")","v":0.16935665207051143},{"$f":"IF(D23>0,1-D24/(D23+D26),\"-\")","v":0.19386855235979383},{"$f":"IF(E23>0,1-E24/(E23+E26),\"-\")","v":0.17191849830879213},{"$f":"IF(F23>0,1-F24/(F23+F26),\"-\")","v":0.16849284751698512},{"$f":"IF(G23>0,1-G24/(G23+G26),\"-\")","v":0.17567219636122078}]
["Thermal Energy Produced","GWh",null,null,null,null,{"$f":"SUM(C28:F28)","v":0},"-"]
["Thermal Energy Exported",null,"-","-",0.43609500000000001,0.39807900000000002,{"$f":"SUM(C29:F29)","v":0.83417399999999997},4.4391058568169729E-3]
["R1 value",null,null,null,null,null,"Design / Operational / n/a"]
[]
["Waste Disposal & Recovery","Unit","Q1","Q2","Q3","Q4","Year Total","% inputs"]
["APC Residues - produced","tonnes",1515.46,1571.4,1709.52,1668.86,{"$f":"SUM(C33:F33)","v":6465.24},{"$f":"IF(G33>0,G33/$G$18,\"-\")","v":3.440515378053903E-2}]
["IBA - produced",null,8642,8871.98,10110.459999999999,9783.64,37408.080000000002,0.19906929132324655]
["Metals recycling",null,381.84,559,514.24,442.71,1897.79,1.0099200771072561E-2]
["Cyclone Ash",null,956.62,1213.1600000000001,1181.4000000000001,1042.44,4393.6200000000008,2.3380906471105776E-2]
["Other [Please specify]",null,0,0,0,0,0,"-"]
["Other [Please specify]",null,0,0,0,0,0,"-"]
[]
["Raw Material Usage","Unit","Q1","Q2","Q3","Q4","Year Total","kg or Ltr /te"]
["Mains Water","m3",19872,24341,21051,26576,{"$f":"SUM(C41:F41)","v":91840},{"$f":"IF(G41>0,G41/$G$18,\"-\")","v":0.48873194548148319}]
["Other Water","m3",41548.75,49147.708333333328,45100.625,38129.583333333328,173926.66666666663,0.92556095569587782]
["Ammonia / Urea","kgs",126000,136000,136000,114000,512000,2.7246380235901504]
["Activated Carbon","kgs",46000,36500,36000,37000,155500,0.82750236849271164]
["Lime / hydrated lime","kgs",627000,670000,751000,670000,2718000,14.463996383043025]
["Fuel oil","ltrs",204451,252979,121512,245344,824286,4.3864862849863879]
["Gas","cf",0,0,0,0,0,{"$f":"IF(G47>0,G47*1000/$G$18,\"-\")","v":"-"}]
["Other",null,0,0,0,0,0,"-"]
[]
["Summary of Hours","Line/Unit","Q1","Q2","Q3","Q4","Year Total"]
["Hours of waste combustion, total",{"$f":"1","v":1},1589,1965,1890,1347,{"$f":"SUM(C51:F51)","v":6791},{"$f":"G51/8760","v":0.77522831050228314}]
["Hours of waste combustion, total",2,1706,1941,1685,1690,7022,{"$f":"G52/8760","v":0.80159817351598173}]
["Hours of waste combustion, total",3,2155.83,1652,2207,2164,8178.83,0.93365639269406386]
["Hours of waste combustion, total",4,null,null,null,null,0,"-"]
["Hours of waste combustion, total",5,null,null,null,null,{"$f":"SUM(C55:F55)","v":0},"-"]
["Hours of turbine operations, total",1,1938.4,2172.4,2087.5300000000002,1938.86,8137.19,0.92890296803652961]
["Hours of turbine operations, total",2,2139.15,1639.88,2208,2161.83,8148.8600000000006,0.93023515981735172]
["Hours of heat / steam export",null,0,0,0,0,0,{"$f":"IF(B58>0,G57/8760,\"n/a\")","v":"n/a"}]
["Abnormal Events","qty.",0,0,0,0,0,{"$f":"IF(G59>0,\"yes\",\"no\")","v":"no"}]
["Abnormal operation","hours",null,0,0,0,0,{"$f":"+(G60)/8760","v":0}]
["Permit Breaches","qty.",null,0,0,0,0,{"$f":"IF(G61>0,\"yes\",\"no\")","v":"no"}]

{"sheet":"Perf. Form 1 ","index":5,"n_rows":56,"n_cols":10,"rows_kept":56,"cut":false,"hidden":false,"merged":[[49,0,49,1],[51,0,51,9],[52,0,53,9],[40,0,40,9],[41,0,42,9],[45,0,45,1],[45,2,45,9],[47,0,47,1],[48,0,48,1],[38,0,38,3],[38,4,38,5],[38,7,38,8],[39,0,39,3],[39,4,39,5],[39,7,39,8],[36,0,36,3],[36,4,36,5],[36,7,36,8],[37,0,37,3],[37,4,37,5],[37,7,37,8],[33,0,33,3],[33,7,33,8],[34,0,34,3],[34,4,34,5],[34,7,34,8],[35,0,35,3],[35,4,35,5],[35,7,35,8],[25,0,25,3],[25,4,25,5],[25,6,25,7],[25,8,25,9],[27,0,27,9],[28,0,30,9],[23,0,23,1],[23,2,23,3],[23,4,23,5],[23,6,23,7],[23,8,23,9],[24,0,24,3],[24,4,24,5],[24,6,24,7],[24,8,24,9],[21,0,21,1],[21,2,21,3],[21,4,21,5],[21,6,21,7],[21,8,21,9],[22,0,22,1],[22,2,22,3],[22,4,22,5],[22,6,22,7],[22,8,22,9],[19,0,19,1],[19,2,19,3],[19,4,19,5],[19,6,19,7],[19,8,19,9],[20,0,20,1],[20,2,20,3],[20,4,20,5],[20,6,20,7],[20,8,20,9],[17,0,17,1],[17,2,17,3],[17,4,17,5],[17,6,17,7],[17,8,17,9],[18,0,18,1],[18,2,18,3],[18,4,18,5],[18,6,18,7],[18,8,18,9],[15,0,15,1],[15,2,15,3],[15,4,15,5],[15,6,15,7],[15,8,15,9],[16,0,16,9],[13,0,13,1],[13,2,13,3],[13,4,13,5],[13,6,13,7],[13,8,13,9],[14,0,14,3],[14,4,14,5],[14,6,14,7],[14,8,14,9],[11,0,11,1],[11,2,11,3],[11,4,11,5],[11,6,11,7],[11,8,11,9],[12,0,12,1],[12,2,12,3],[12,4,12,5],[12,6,12,7],[12,8,12,9],[9,0,9,9],[10,0,10,1],[10,2,10,3],[10,4,10,5],[10,6,10,7],[10,8,10,9],[2,0,2,4],[2,6,2,8],[3,1,3,4],[5,3,5,4],[5,6,5,7],[8,0,8,1],[8,2,8,3],[8,4,8,5],[8,6,8,7],[8,8,8,9]]}
[{"$f":"+'Cover Page'!C39","v":2023}," Annual Reporting Performance Form 1"]
[]
[{"$f":"+'Cover Page'!B31","v":"Permit PPC/A/1003157/CP01 (As varied)"},null,null,null,null,"Operator: ",{"$f":"+'Cover Page'!B37:I37","v":0}]
["Facility:",{"$f":"+'Cover Page'!B33:I33","v":"MVV Environment Baldovie Ltd"},null,null,null,"Form:","Performance 1"]
[]
["Reporting  Period from: ",null,null,"2023-01-01",null,"to:","2023-12-31"]
[]
[{"$f":"+A1","v":2023},"Annual Reporting of Waste Disposal and Recovery"]
["Waste Description",null,"Disposal Route(s)",null,"Disposal Tonnes",null,"Recovery Tonnes",null,"% / tonne of waste incinerated"]
["1) Hazardous Wastes"]
["APC Residues",null,"Recovered",null,0,null,{"$f":"'Operational Data'!G33-E13","v":3450.06},null,{"$f":"IF((E11+G11)>0,(E11+G11)/'Operational Data'!$G$18, \"-\")","v":1.8359696600912957E-2}]
["IBA",null,null,null,null,null,null,null,{"$f":"IF((E12+G12)>0,(E12+G12)/'Operational Data'!$G$18, \"-\")","v":"-"}]
["Filter Ash",null,"Landfilled",null,{"$f":"615.68+818.5+977.44+603.56","v":3015.18},null,0,null,{"$f":"IF((E13+G13)>0,(E13+G13)/'Operational Data'!$G$18, \"-\")","v":1.604545717962607E-2}]
[null,null,null,null,null,null,null,null,{"$f":"IF((E14+G14)>0,(E14+G14)/'Operational Data'!$G$18, \"-\")","v":"-"}]
["Total Hazardous Waste",null,null,null,{"$f":"SUM(E11:F14)","v":3015.18},null,{"$f":"SUM(G11:H14)","v":3450.06},null,{"$f":"IF((E15+G15)>0,(E15+G15)/'Operational Data'!$G$18, \"-\")","v":3.440515378053903E-2}]
[]
["2) Non-Hazardous Wastes"]
["IBA",null,"Recycled",null,0,null,{"$f":"'Operational Data'!G34","v":37408.080000000002},null,{"$f":"IF((E18+G18)>0,(E18+G18)/'Operational Data'!$G$18, \"-\")","v":0.19906929132324655}]
["Metals",null,"Recycled",null,0,null,{"$f":"'Operational Data'!G35","v":1897.79},null,{"$f":"IF((E19+G19)>0,(E19+G19)/'Operational Data'!$G$18, \"-\")","v":1.0099200771072561E-2}]
["Process Water",null,null,null,null,null,null,null,{"$f":"IF((E20+G20)>0,(E20+G20)/'Operational Data'!$G$18, \"-\")","v":"-"}]
["Cyclone Ash ",null,"Landfilled",null,{"$f":"'Operational Data'!G36","v":4393.6200000000008},null,0,null,{"$f":"IF((E21+G21)>0,(E21+G21)/'Operational Data'!$G$18, \"-\")","v":2.3380906471105776E-2}]
[null,null,null,null,null,null,null,null,{"$f":"IF((E22+G22)>0,(E22+G22)/'Operational Data'!$G$18, \"-\")","v":"-"}]
[null,null,null,null,null,null,null,null,{"$f":"IF((E23+G23)>0,(E23+G23)/'Operational Data'!$G$18, \"-\")","v":"-"}]
[null,null,null,null,null,null,null,null,{"$f":"IF((E24+G24)>0,(E24+G24)/'Operational Data'!$G$18, \"-\")","v":"-"}]
["Total Non-Hazardous Waste",null,null,null,{"$f":"SUM(E18:F24)","v":4393.6200000000008},null,{"$f":"SUM(G18:H24)","v":39305.870000000003},null,{"$f":"IF((E25+G25)>0,(E25+G25)/'Operational Data'!$G$18, \"-\")","v":0.23254939856542489}]
["TOTAL WASTE",null,null,null,{"$f":"+E25+E15","v":7408.8000000000011},null,{"$f":"+G25+G15","v":42755.93},null,{"$f":"IF((E26+G26)>0,(E26+G26)/'Operational Data'!$G$18, \"-\")","v":0.26695455234596394}]
[]
["Operator’s comments :"]
["APCr is recovered by a specialist contractor, licensed to receive special wastes as per our waste residue management plan.\nEffluent water is monitored by Scottish Water under trade effluent consent. Each plants are separately consented. There were no breaches of consent conditions for either plant, further details can be found in the Water section."]
[]
[]
[]
[{"$f":"+A1","v":2023},"Annual Reporting of Water and Other Raw Material Usage"]
["Raw Material",null,null,null,"Usage",null,"Unit","Specific Useage",null,"Unit"]
["Mains Water",null,null,null,{"$f":"+'Operational Data'!G41","v":91840},null,"m3",{"$f":"IF(E35>0,E35/'Operational Data'!$G$18,\"-\")","v":0.48873194548148319},null,"m3/te"]
["Total Water",null,null,null,{"$f":"+'Operational Data'!G42+'Operational Data'!G41","v":265766.66666666663},null,"m3",{"$f":"IF(E36>0,E36/'Operational Data'!$G$18,\"-\")","v":1.4142929011773611},null,"m3/te"]
["Urea / Ammonia",null,null,null,{"$f":"+'Operational Data'!G43","v":512000},null,"kg",{"$f":"IF(E37>0,E37/'Operational Data'!$G$18,\"-\")","v":2.7246380235901504},null,"kg/te"]
["Activated Carbon",null,null,null,{"$f":"+'Operational Data'!G44","v":155500},null,"kg",{"$f":"IF(E38>0,E38/'Operational Data'!$G$18,\"-\")","v":0.82750236849271164},null,"kg/te"]
["Lime / hydrated lime / Sodium Bicarb.",null,null,null,{"$f":"+'Operational Data'!G45","v":2718000},null,"kg",{"$f":"IF(E39>0,E39/'Operational Data'!$G$18,\"-\")","v":14.463996383043025},null,"kg/te"]
[]
["Operator’s comments :"]
[]
[]
[]
[{"$f":"+A33","v":2023},"Annual Reporting of other performance indicators "]
["Parameter",null,"Results by Line"]
[null,null,"A1","A2","A3","A4","A5",null,"Turbine 1","Turbine 2"]
["Operating hours for the year, hours",null,6791,7022,8179,null,null,null,8137,8149]
["Number of periods of abnormal operation, qty.",null,"-","-","-",null,null,null,"-","-"]
["Cumulative hours of abnormal operation for this year, hours",null,"-","-","-",null,null,null,"-","-"]
[]
["Operator’s comments :"]
["Line 1&2 availability was slighty below forecasted levels.\nLine 3 availability was above forecasted values."]
[]
[]
["Signed: ",null,null,null,null,null,"Date:"]

{"sheet":"Energy Form 1","index":6,"n_rows":29,"n_cols":7,"rows_kept":29,"cut":false,"hidden":false,"merged":[[15,0,15,2],[15,3,15,4],[15,6,15,8],[17,0,17,8],[18,0,24,8],[13,0,13,2],[13,3,13,4],[13,6,13,8],[14,0,14,2],[14,3,14,4],[14,6,14,8],[11,0,11,2],[11,3,11,4],[11,6,11,8],[12,0,12,2],[12,3,12,4],[12,6,12,8],[9,0,9,2],[9,3,9,4],[9,6,9,8],[10,0,10,2],[10,3,10,4],[10,6,10,8],[2,6,2,8],[4,1,4,4],[6,3,6,4],[6,6,6,7],[8,0,8,2],[8,3,8,4],[8,6,8,8]]}
[{"$f":"+'Cover Page'!C39","v":2023}," Annual Reporting of Energy Usage/Export"]
[]
[{"$f":"+'Cover Page'!B31","v":"Permit PPC/A/1003157/CP01 (As varied)"},null,null,null,null,"Operator: ",{"$f":"+'Cover Page'!B37:I37","v":0}]
[]
["Facility:",{"$f":"+'Cover Page'!B33:I33","v":"MVV Environment Baldovie Ltd"},null,null,null,"Form:","Energy 1"]
[]
["Reporting  Period from: ",null,null,{"$f":"+'[1]Perf. Form 1 (2)'!D6:E6","v":"2023-01-01"},null,"to:",{"$f":"+'[1]Perf. Form 1 (2)'!G6:H6","v":"2023-12-31"}]
[]
["Energy Source",null,null,"Energy Usage",null,"Unit","Specific Useage (KWh/tonne incinerated"]
["Electricity Produced",null,null,{"$f":"+'Operational Data'!G23","v":147131},null,"MWh",{"$f":"+'Operational Data'!H23","v":782.96624423602032}]
["Electricity Imported   ",null,null,{"$f":"+'Operational Data'!G26","v":613.62230000000034},null,"MWh",{"$f":"+'Operational Data'!H26","v":3.2654270521539903}]
["Electricity Exported",null,null,{"$f":"+'Operational Data'!G24","v":121790},null,"MWh",{"$f":"+'Operational Data'!H24","v":648.11262674422733}]
["Gas Oil",null,null,824286,null,"tonnes"]
["Steam/hot water exported",null,null,{"$f":"+'Operational Data'!G29","v":0.83417399999999997},null,"GWh",{"$f":"+'Operational Data'!H29","v":4.4391058568169729E-3}]
[]
[]
[]
["Operator’s comments :"]
["Energy generation is in line with forecasted values.\nTurbine perfomance is satisfactory.\nBoiler gas oil use is as forecast for 2023 and in line with expected performance. "]
[]
[]
[]
[]
[]
[]
[]
[]
[]
["Signed: ",null,null,null,null,null,"Date:"]

{"sheet":"Permit Compliance","index":7,"n_rows":42,"n_cols":6,"rows_kept":42,"cut":false,"hidden":false,"merged":[[96,1,96,3],[96,4,96,6],[96,7,96,9],[97,4,97,8],[94,1,94,3],[94,4,94,6],[94,7,94,9],[95,1,95,3],[95,4,95,6],[95,7,95,9],[92,1,92,3],[92,4,92,6],[92,7,92,9],[93,1,93,3],[93,4,93,6],[93,7,93,9],[88,1,88,3],[88,4,88,6],[88,7,88,9],[90,0,90,10],[91,1,91,3],[91,4,91,6],[91,7,91,9],[86,1,86,3],[86,4,86,6],[86,7,86,9],[87,1,87,3],[87,4,87,6],[87,7,87,8],[84,1,84,3],[84,4,84,6],[84,7,84,8],[85,1,85,3],[85,4,85,6],[85,7,85,8],[82,1,82,3],[82,4,82,6],[82,7,82,9],[83,1,83,3],[83,4,83,6],[83,7,83,8],[80,1,80,3],[80,4,80,6],[80,7,80,9],[81,1,81,3],[81,4,81,6],[81,7,81,9],[78,1,78,3],[78,4,78,6],[78,7,78,9],[79,1,79,3],[79,4,79,6],[79,7,79,9],[75,0,75,10],[76,1,76,3],[76,4,76,6],[76,7,76,9],[77,1,77,3],[77,4,77,6],[77,7,77,9],[40,0,40,1],[40,2,40,4],[40,5,40,8],[41,0,41,1],[41,2,41,4],[41,5,41,8],[38,0,38,1],[38,2,38,4],[38,5,38,8],[39,0,39,1],[39,2,39,4],[39,5,39,8],[36,0,36,1],[36,2,36,4],[36,5,36,8],[37,0,37,1],[37,2,37,4],[37,5,37,8],[34,0,34,1],[34,2,34,4],[34,5,34,8],[35,0,35,1],[35,2,35,4],[35,5,35,8],[31,0,31,1],[31,2,31,8],[32,0,32,1],[32,2,32,4],[32,5,32,8],[33,0,33,1],[33,2,33,4],[33,5,33,8],[28,0,28,1],[28,2,28,4],[28,5,28,8],[29,0,29,1],[29,2,29,4],[29,5,29,8],[26,0,26,1],[26,2,26,4],[26,5,26,8],[27,0,27,1],[27,2,27,4],[27,5,27,8],[24,0,24,1],[24,2,24,4],[24,5,24,8],[25,0,25,1],[25,2,25,4],[25,5,25,8],[22,0,22,1],[22,2,22,4],[22,5,22,8],[23,0,23,1],[23,2,23,4],[23,5,23,8],[19,0,19,1],[19,2,19,8],[20,0,20,1],[20,2,20,4],[20,5,20,8],[21,0,21,1],[21,2,21,4],[21,5,21,8],[16,20,16,23],[17,0,17,1],[17,2,17,4],[17,5,17,8],[17,10,17,12],[17,13,17,16],[17,17,17,19],[17,20,17,23],[16,0,16,1],[16,2,16,4],[16,5,16,8],[16,10,16,12],[16,13,16,16],[16,17,16,19],[14,20,14,23],[15,0,15,1],[15,2,15,4],[15,5,15,8],[15,10,15,12],[15,13,15,16],[15,17,15,19],[15,20,15,23],[14,0,14,1],[14,2,14,4],[14,5,14,8],[14,10,14,12],[14,13,14,16],[14,17,14,19],[12,20,12,23],[13,0,13,1],[13,2,13,4],[13,5,13,8],[13,10,13,12],[13,13,13,16],[13,17,13,19],[13,20,13,23],[12,0,12,1],[12,2,12,4],[12,5,12,8],[12,10,12,12],[12,13,12,16],[12,17,12,19],[10,20,10,23],[11,0,11,1],[11,2,11,4],[11,5,11,8],[11,10,11,12],[11,13,11,16],[11,17,11,19],[11,20,11,23],[10,0,10,1],[10,2,10,4],[10,5,10,8],[10,10,10,12],[10,13,10,16],[10,17,10,19],[8,20,8,23],[9,0,9,1],[9,2,9,4],[9,5,9,8],[9,10,9,12],[9,13,9,16],[9,17,9,19],[9,20,9,23],[7,0,7,1],[7,2,7,8],[7,10,7,16],[7,17,7,23],[8,0,8,1],[8,2,8,4],[8,5,8,8],[8,10,8,12],[8,13,8,16],[8,17,8,19]]}
[{"$f":"+'Cover Page'!$B$29","v":"Annual Performance Report 2023"},null,null,null,{"$f":"+'Cover Page'!$B$33","v":"MVV Environment Baldovie Ltd"}]
[]
["Summary of Permit Compliance"]
[]
["Compliance with permit limits for continuously monitored pollutants"]
[]
["The plant met its emission limits as shown in the table below:"]
["Substance",null,"Percentage time compliant during operation - A1"]
[null,null,"Half-hourly limit",null,null,"Daily limit"]
["Particulates",null,0.99960000000000004,null,null,1]
["Oxides of nitrogen",null,0.97619999999999996,null,null,1]
["Sulphur dioxide",null,1,null,null,1]
["Carbon monoxide",null,"99.73% (95% of 10-min averages)",null,null,0.98629999999999995]
["Total organic carbon",null,0.99739999999999995,null,null,0.99729999999999996]
["Hydrogen chloride",null,0.99399999999999999,null,null,1]
["Hydrogen fluoride",null,1,null,null,1]
["Nitrous Oxide",null,1,null,null,1]
["Ammonia",null,1,null,null,1]
[]
["Substance",null,"Percentage time compliant during operation - A2"]
[null,null,"Half-hourly limit",null,null,"Daily limit"]
["Particulates",null,0.99970000000000003,null,null,1]
["Oxides of nitrogen",null,0.97130000000000005,null,null,1]
["Sulphur dioxide",null,0.99950000000000006,null,null,1]
["Carbon monoxide",null,"100% (95% of 10-min averages)",null,null,0.98629999999999995]
["Total organic carbon",null,0.99950000000000006,null,null,1]
["Hydrogen chloride",null,0.98909999999999998,null,null,0.99729999999999996]
["Hydrogen fluoride",null,1,null,null,1]
["Nitrous Oxide",null,1,null,null,1]
["Ammonia",null,1,null,null,0.99729999999999996]
[]
["Substance",null,"Percentage time compliant during operation - A3"]
[null,null,"Half-hourly limit",null,null,"Daily limit"]
["Particulates",null,0.99950000000000006,null,null,1]
["Oxides of nitrogen",null,0.98540000000000005,null,null,1]
["Sulphur dioxide",null,0.99860000000000004,null,null,0.99450000000000005]
["Carbon monoxide",null,"98.90% (95% of 10-min averages)",null,null,0.97809999999999997]
["Total organic carbon",null,0.99909999999999999,null,null,0.99729999999999996]
["Hydrogen chloride",null,0.99990000000000001,null,null,1]
["Hydrogen fluoride",null,1,null,null,1]
["Nitrous Oxide",null,1,null,null,1]
["Ammonia",null,1,null,null,1]

{"sheet":"Permit Compliance (2)","index":8,"n_rows":42,"n_cols":8,"rows_kept":42,"cut":false,"hidden":false,"merged":[[4,0,4,9],[7,7,7,9],[6,4,6,6],[6,7,6,9],[8,4,8,6],[9,1,9,3],[9,4,9,6],[9,7,9,9],[5,1,5,3],[5,4,5,6],[14,1,14,3],[14,4,14,6],[14,7,14,9],[11,7,11,9],[41,4,41,8],[40,1,40,3],[40,4,40,6],[40,7,40,9],[18,4,18,6],[18,7,18,9],[21,1,21,3],[21,4,21,6],[21,7,21,9],[39,7,39,9],[34,1,34,3],[34,4,34,6],[34,7,34,9],[37,1,37,3],[37,4,37,6],[37,7,37,9],[38,1,38,3],[38,4,38,6],[38,7,38,9],[39,1,39,3],[39,4,39,6],[36,0,36,9],[33,1,33,3],[33,4,33,6],[33,7,33,9],[5,7,5,9],[8,1,8,3],[26,4,26,6],[26,7,26,9],[17,1,17,3],[17,4,17,6],[17,7,17,9],[18,1,18,3],[7,1,7,3],[7,4,7,6],[10,1,10,3],[10,4,10,6],[10,7,10,9],[12,1,12,3],[12,4,12,6],[11,1,11,3],[11,4,11,6],[22,1,22,3],[22,4,22,6],[22,7,22,9],[6,1,6,3],[24,4,24,6],[24,7,24,9],[31,1,31,3],[31,4,31,6],[31,7,31,9],[12,7,12,9],[13,1,13,3],[13,4,13,6],[13,7,13,9],[19,1,19,3],[19,4,19,6],[19,7,19,9],[20,1,20,3],[20,4,20,6],[20,7,20,9],[15,7,15,9],[16,1,16,3],[16,4,16,6],[16,7,16,9],[15,1,15,3],[15,4,15,6],[8,7,8,9],[32,1,32,3],[32,4,32,6],[32,7,32,9],[23,1,23,3],[23,4,23,6],[23,7,23,9],[29,1,29,3],[29,4,29,6],[29,7,29,9],[30,1,30,3],[30,4,30,6],[30,7,30,9],[25,1,25,3],[25,4,25,6],[25,7,25,9],[27,1,27,3],[27,4,27,6],[27,7,27,9],[28,1,28,3],[28,4,28,6],[28,7,28,9],[26,1,26,3],[24,1,24,3]]}
[{"$f":"+'Cover Page'!$B$29","v":"Annual Performance Report 2023"},null,null,null,{"$f":"+'Cover Page'!$B$33","v":"MVV Environment Baldovie Ltd"}]
[]
["Summary of Permit Compliance"]
[]
["Summary of any notifications or non-compliances under the permit"]
["Date","Summary of notification or non-compliance [including Line/Reference]",null,null,"Reason ",null,null,"Measures taken to prevent reoccurrence"]
["2023-01-26","Dioxin and Furan Periodic Monitoring - Line 1 Non-Compliance with ELV identified by SEPA-authorised monitoring regime. Retesting carried out. ",null,null,"Exceedance of Dioxin and Furan periodic monitoring ELV limit, Powdered Activated Carbon Specification assessed as non-compliant ",null,null,"An investigation was conducted to establish the root cause identified and reported to SEPA.   "]
["2023-02-02","Daily average exceedance of CO and an exceedance of the 95th%ile 10-minute average on Boiler 3",null,null,"Suspected orphaned waste cylinder explosion causing an overpressure condition ",null,null,"Liaison with partner councils on the importance of effective waste cylinder segregation.  "]
["2023-02-02","Minor Fire where SFRS onsite - Lines 1&2",null,null,"RDF store",null,null,"Additional controls implemented and liaison with the SFRS"]
["2023-02-08","Daily average exceedance of CO & TOC on Boiler 3",null,null,"Suspected orphaned waste cylinder explosion causing an overpressure condition  ",null,null,"Liaison with partner councils on the importance of effective waste cylinder segregation  "]
["2023-02-14","Daily average exceedance of NH3 on Boiler 2",null,null,"Start-up ",null,null,"Review of start-up procedures "]
["2023-02-15","Minor Fire where SFRS onsite - Lines 1&2",null,null,"RDF store",null,null,"Additional controls implemented and liaison with the SFRS "]
["2023-02-23","95th%ile CO 10 minute average breach on Boiler 1",null,null,"Waste to oil transitions and inconsistant fuel feed ",null,null,"The fuel feed system  was cleaned and inspected "]
["2023-03-03","Daily average exceedance of CO on Boiler 2",null,null,"Shutdown",null,null,"The fuel feed system  was cleaned and inspected"]
["2023-03-07","Minor Fire where SFRS onsite - Lines 1&2",null,null,"RDF store",null,null,"Additional controls implemented and liaison with the SFRS "]
["2023-03-07","Daily average exceedance of CO on Boiler 1",null,null,"Shutdown",null,null,"The fuel feed system  was cleaned and inspected and maintenance was complete"]
["2023-03-20","Daily average exceedance of CO on Boiler 2",null,null,"Start-up ",null,null,"The fuel feed system  was cleaned and inspected and maintenance was complete"]
["2023-04-07","Daily average exceedance of CO on Boiler 2",null,null,"Start-up ",null,null,"The fuel feed system  was cleaned and inspected and maintenance was complete"]
["2023-04-10","Minor Fire where SFRS onsite - Lines 1&2",null,null,"RDF store",null,null,"Additional controls implemented and liaison with the SFRS "]
["2023-04-19","Daily average exceedance of CO on Boiler 1",null,null,"Inconsistent fuel feed due to waste quality ",null,null,"The fuel feed system was cleaned and inspected "]
["2023-04-28","Daily average exceedance of CO on Boiler 1",null,null,"Start-up ",null,null,"Review of start-up procedures "]
["2023-04-30","Daily average exceedance of HCl on Boiler 1",null,null,"Shutdown",null,null,"Incident investigated but root cause was unidentified "]
["2023-05-04","Minor Fire where SFRS onsite - Lines 1&2",null,null,"RDF store",null,null,"Additional controls implemented and liaison with the SFRS "]
["2023-05-30","Daily average exceedance of CO, SO2, and an exceedance of the 95th%ile 10-minute average on Boiler 3",null,null,"Start-up ",null,null,"Review of start-up procedures "]
["2023-05-31","Daily average exceedance of CO and an exceedance of the 95th%ile 10-minute average on Boiler 3",null,null,"Start-up ",null,null,"Review of start-up procedures "]
["2023-06-01","Daily average exceedance of CO, SO2, and an exceedance of the 95th%ile 10-minute average on Boiler 3",null,null,"Start-up ",null,null,"Review of start-up procedures "]
["2023-06-06","Daily average exceedance of CO on Boiler 3",null,null,"Start-up ",null,null,"Review of start-up procedures "]
["2023-06-18","Daily average exceedance of CO on Boiler 3",null,null,"Suspected orphaned waste cylinder explosion causing an overpressure ",null,null,"Liaison with partner councils on the importance of effective waste cylinder segregation   "]
["2023-07-05","Daily average exceedance of CO on Boiler 2",null,null,"Shutdown",null,null,"Liaison with partner councils on the importance of effective waste cylinder segregation   "]
["2023-08-23","Daily average exceedance of CO on Boiler 3",null,null,"Suspected orphaned waste cylinder explosion causing an overpressure ",null,null,"Liaison with partner councils on the importance of effective waste cylinder segregation  "]
["2023-09-07","Daily average exceedance of CO on Boiler 2",null,null,"Start-up ",null,null,"Review start-up procedures"]
["2023-10-11","Daily average exceedance of CO on Boiler 1",null,null,"Start-up ",null,null,"Review start-up procedures"]
["2023-11-01","Dioxin and Furan Periodic Monitoring - Line 1 Non-Compliance with ELV ",null,null,"Exceedance of Dioxin and Furan periodic monitoring ELV limit",null,null,"Investigation ongoing"]
["2023-11-27","Daily average exceedance of CO on Boiler 1",null,null,"Start-up ",null,null,"Review start-up procedures"]
["2023-12-13","Daily average exceedance of TOC on Boiler 1",null,null,"Shutdown",null,null,"Maintenance carried out accordingly "]
[]
["Summary of any complaints received and actions to taken to resolve them."]
["Date","Summary of complaint [including Line/Reference]",null,null,"Reason *",null,null,"Measures taken to prevent reoccurrence"]
["2023-09-10","Odour complaint ",null,null,"Received from                         . No evidence found",null,null,"Investigations found no issues to resolve"]
["2023-11-27","External IBA haulier dust emissions",null,null,"                failed to cover vehicle with sheeting although informed prior to leaving site, this resulted in the vehicle emitting dust onto a public road and vehicle.",null,null,"Waste carrier licensed specialist contractors were made aware"]
["2023-12-08","Odour complaint ",null,null,"Received from SEPA on the 13th of December due to a complaint                     . No evidence was found on the day of the complaint during daily site checks.",null,null,"no issues to resolve "]
[null,null,null,null,"* including whether substantiated by the operator or the EA"]

{"sheet":"Improvements","index":9,"n_rows":39,"n_cols":5,"rows_kept":39,"cut":false,"hidden":false,"merged":[[37,0,37,9],[38,0,47,9],[4,0,4,9],[5,0,13,9],[15,0,15,9],[16,0,24,9],[26,0,26,9],[27,0,35,9]]}
[{"$f":"+'Cover Page'!$B$29","v":"Annual Performance Report 2023"},null,null,null,{"$f":"+'Cover Page'!$B$33","v":"MVV Environment Baldovie Ltd"}]
[]
["Summary of Plant Improvements"]
[]
["Summary of any efficiency improvements that have been completed within the year."]
["Commissioning of the medium pressure steam export system to feed the MSIP innovation park complex on the adjacent site.  This system is capable of supplying up to 5 MWth at 6 bar for the buildings' space heating."]
[]
[]
[]
[]
[]
[]
[]
[]
[]
["Summary of any permit improvement conditions that have been completed within the year and the resulting environmental benefits."]
["Investigation and implementation of test programs for trialling compliance with BATc ELVs in advance of the new ELVs being applied in Dec 2023.  Compliance was demonstrated with proportional reduction in mass emissions of NOx and HCl "]
[]
[]
[]
[]
[]
[]
[]
[]
[]
["Summary of any changes to the plant or operating techniques which required a variation to the permit and a summary of the resulting environmental impact."]
[]
[]
[]
[]
[]
[]
[]
[]
[]
[]
["Summary of any other improvements made to the plant or planned to be made and a summary of the resulting environmental benefits."]
["Several concepts for energy export from all 3 lines are under investigation.  Thes include private wire electricity supplies to adjacent facilities, and a detailed Feasibility Study into a District Heating network which would be fed primarily from stem or hot water from the EfW facilities"]

{"sheet":"Public Liasion","index":10,"n_rows":133,"n_cols":5,"rows_kept":133,"cut":false,"hidden":false,"merged":[[46,0,47,1],[46,2,47,9],[30,0,31,1],[30,2,31,9],[32,0,33,1],[32,2,33,9],[34,0,35,1],[34,2,35,9],[5,0,5,1],[5,2,5,9],[6,0,7,1],[6,2,7,9],[8,0,9,1],[8,2,9,9],[10,0,11,1],[10,2,11,9],[12,0,13,1],[12,2,13,9],[16,2,17,9],[14,2,15,9],[22,2,23,9],[20,2,21,9],[18,2,19,9],[26,0,27,1],[42,2,43,9],[24,2,25,9],[36,2,37,9],[38,2,39,9],[40,2,41,9],[44,2,45,9],[26,2,27,9],[28,0,29,1],[28,2,29,9],[58,0,59,1],[58,2,59,9],[48,0,49,1],[48,2,49,9],[50,0,51,1],[50,2,51,9],[52,0,53,1],[52,2,53,9],[60,0,61,1],[60,2,61,9],[54,0,55,1],[54,2,55,9],[56,0,57,1],[56,2,57,9],[62,0,63,1],[62,2,63,9],[84,0,85,1],[84,2,85,9],[68,0,69,1],[70,0,71,1],[72,0,73,1],[74,0,75,1],[76,0,77,1],[78,0,79,1],[80,0,81,1],[82,0,83,1],[82,2,83,9],[80,2,81,9],[68,2,69,9],[66,2,67,9],[64,2,65,9],[78,2,79,9],[76,2,77,9],[74,2,75,9],[72,2,73,9],[70,2,71,9],[92,0,93,1],[92,2,93,9],[94,0,95,1],[94,2,95,9],[96,0,97,1],[96,2,97,9],[86,0,87,1],[86,2,87,9],[88,0,89,1],[88,2,89,9],[90,0,91,1],[90,2,91,9],[113,0,114,1],[115,0,116,1],[117,0,118,1],[119,0,120,1],[121,0,122,1],[123,0,124,1],[125,0,126,1],[107,2,108,9],[98,0,99,1],[98,2,99,9],[100,0,101,1],[100,2,101,9],[102,0,103,1],[102,2,103,9],[119,2,120,9],[121,2,122,9],[123,2,124,9],[125,2,126,9],[109,2,110,9],[111,2,112,9],[113,2,114,9],[115,2,116,9],[117,2,118,9],[129,0,130,1],[129,2,130,9],[132,0,132,9],[14,0,15,1],[16,0,17,1],[18,0,19,1],[20,0,21,1],[22,0,23,1],[24,0,25,1],[36,0,37,1],[38,0,39,1],[40,0,41,1],[42,0,43,1],[44,0,45,1],[64,0,65,1],[66,0,67,1],[105,0,105,9],[106,0,106,1],[106,2,106,9],[127,0,128,1],[127,2,128,9],[107,0,108,1],[109,0,110,1],[111,0,112,1]]}
[{"$f":"+'Cover Page'!$B$29","v":"Annual Performance Report 2023"},null,null,null,{"$f":"+'Cover Page'!$B$33","v":"MVV Environment Baldovie Ltd"}]
[]
["Details of Public & Stakeholder Liasion"]
[]
["Summary of events held during the reporting year."]
["Date",null,"Description"]
["17.01.23",null,"Taycities Coffee Morning"]
[]
["19.01.23",null,"Arbroath Careers Convention"]
[]
["19.01.23",null,"Harris Careers Convention"]
[]
["20.01.23",null,"Rocksolid Site Visit"]
[]
["23.01.23",null,"Monifieth HS Visit"]
[]
["26.01.23",null,"Good Neighbours Group"]
[]
["31.01.23",null,"Sistema and [REDACTED] presentation"]
[]
["03.02.23",null,"Lego League"]
[]
["08.02.23",null,"Meet the Experts Session"]
[]
["23.02.23",null,"Arbroath School Tour"]
[]
["23.03.23",null,"PSIV Presentation"]
[]
["16.01.23",null,"CV Session - Grove Academy"]
[]
["10.02.23",null,"Arbroath HS - Work for Energy Course"]
[]
["27.02.23",null,"Dundee College Tour"]
[]
["03.03.23",null,"Aberlemno PS - Tour"]
[]
["09.03.23",null,"MSIP Demonstrator Event"]
[]
["30.03.23",null,"TrashFashion - V&A"]
[]
["04.04.23",null,"Family Day"]
[]
["10.01.23",null,"Websters HS - Tour"]
[]
["17.01.23",null,"Big Noise Celebration - Sponsorship"]
[]
["21.02.23",null,"Fintry Primary - STEM Day"]
[]
["06.04.23",null,"Scottish Gov Tour"]
[]
["27.04.23",null,"DYW Careers Fair"]
[]
["27.04.23",null,"Abroath School - ASN Tour"]
[]
["28.04.23",null,"Eastern Primary - Trash Fashion Presentation"]
[]
["28.04.23",null,"Gleblands Primary - Trash Fashion Presentation"]
[]
["05.05.23",null,"Fintry Primary - Trash Fashion Presentation"]
[]
["16.05.23",null,"Grove Academy - EFW Presentation"]
[]
["22.05.23",null,"Climate Generation Workshop"]
[]
["31.05.23",null,"Forthill Primary - Trash Fashion Presentation"]
[]
["01.06.23",null,"Gleblands STEM Day"]
[]
["05.06.23",null,"St Mary's STEM Day"]
[]
["20.06.23",null,"HELM - EFW Talk"]
[]
["07.06.23",null,"Summer Open Day"]
[]
["19.06.23",null,"EMBEDD Programme Visit"]
[]
["30.09.23",null,"Climate Week Event"]
[]
["01.11.23",null,"Craigie High Tour"]
[]
["06.11.23",null,"Grove Academy Careers"]
[]
["09.11.23",null,"St Marys EFW Session"]
[]
["16.11.23",null,"Carnoustie Careers Convention"]
[]
["21.11.23",null,"The Circle's Social Impact Report Hybrid Event"]
[]
["22.11.23",null,"MVV Kirkton High School"]
[]
["23.11.23",null,"TSI Event - Discovery Point"]
[]
["27.11.23",null,"MVV Tour with Dundee College - Engineering Dept"]
[]
["29.11.23",null,"MSIP STEM Expo 2023"]
[]
["30.11.23",null,"Council MVV Visit"]
[]
["06.12.23",null,"Arbroath Academy - Engineering Day"]
[]
["08.12.23",null,"MVV Tour - Physics - Arbroath High School"]
[]
["12.12.23",null,"Craigie High School L&D - STEM"]
[]
[]
["List of events planned for next year"]
["Date",null,"Description"]
["17.01.23",null,"Taycities Coffee Morning"]
[]
["19.01.23",null,"Arbroath Careers Convention"]
[]
["19.01.23",null,"Harris Careers Convention"]
[]
["20.01.23",null,"Rocksolid Site Visit"]
[]
["23.01.23",null,"Monifieth HS Visit"]
[]
["26.01.23",null,"Good Neighbours Group"]
[]
["31.01.23",null,"Sistema and [REDACTED] presentation"]
[]
["03.02.23",null,"Lego League"]
[]
["08.02.23",null,"Meet the Experts Session"]
[]
["23.02.23",null,"Arbroath School Tour"]
[]
["23.03.23",null,"PSIV Presentation"]
[]
[]
[]
[]
["If you wish to be involved in the public liasion programme, please contact _________________"]

{"sheet":"Residue Quality ","index":11,"n_rows":35,"n_cols":6,"rows_kept":35,"cut":false,"hidden":false,"merged":[[35,0,40,6],[32,3,32,4],[34,0,34,6],[27,0,28,1],[29,0,29,1],[30,0,30,1],[31,0,31,1],[32,0,32,1],[29,3,29,4],[30,3,30,4],[29,5,29,6],[30,5,30,6],[31,5,31,6],[32,5,32,6],[20,0,21,1],[20,2,21,6],[22,0,23,1],[22,2,23,6],[31,3,31,4],[27,2,28,2],[28,3,28,4],[28,5,28,6],[27,3,27,6],[26,0,26,6],[5,0,6,6],[7,0,8,6],[9,0,10,6],[14,0,15,1],[14,2,15,6],[16,0,17,1],[16,2,17,6],[18,0,19,1],[18,2,19,6],[12,0,12,6],[13,0,13,1],[13,2,13,6]]}
[{"$f":"+'Cover Page'!$B$29","v":"Annual Performance Report 2023"},null,null,null,{"$f":"+'Cover Page'!$B$33","v":"MVV Environment Baldovie Ltd"}]
[]
["Residue Quality Monitoring Requirements"]
[]
["Summary of monitoring undertaken and compliance"]
["Quarterly sampling of Line 1 and 2 IBA following the WM3 core hazard properties assessment (HP7/7/8/14) including annual full WM3 hazard assessment as per Permit condition 8.1.4. "]
[]
["The third phase of the ESA protocol of monthly sampling was completed in June 2023, after identifying the low variability in key parameters and having no exceedances the decision was made based on the ESA protocol and agreement with SEPA to reduce the frequency to quarterly IBA sampling as per table 8.1 of the PPC permit."]
[]
[]
[]
[]
["Commentary on any specific events"]
["Date & Event",null,"Description"]
["2023-06-23",null,"3rd stage of ESA accelerated sampling protocol was completed as part of the commissioning process for line 3."]
[]
[]
[]
[]
[]
[]
[]
[]
[]
[]
[]
["Residue Quality Monitoring Results"]
["Parameter (unit) ",null,"Limit","Normal Operation "]
[null,null,null,"Bottom ash  ",null,"APC Residues"]
["Loss on Ignition (%)",null,"<5%",1.29]
["ToC (%)",null,"<3%",0.4]
["No. of Assessments Undertaken",null,"---",12,null,8]
["No. of Hazardous Assessments",null,"---",0]
[]
["Comments :"]

{"sheet":"Water","index":12,"n_rows":23,"n_cols":10,"rows_kept":23,"cut":false,"hidden":false,"merged":[[29,0,29,2],[29,3,29,5],[26,0,26,2],[26,3,26,5],[27,0,27,2],[27,3,27,5],[28,0,28,2],[28,3,28,5],[23,0,23,2],[23,3,23,5],[24,0,24,2],[24,3,24,5],[25,0,25,2],[25,3,25,5],[21,0,21,9],[22,0,22,2],[22,3,22,5],[14,0,15,1],[14,2,15,9],[16,0,17,1],[16,2,17,9],[18,0,19,1],[18,2,19,9],[5,0,6,9],[7,0,8,9],[9,0,10,9],[12,0,12,9],[13,0,13,1],[13,2,13,9]]}
[{"$f":"+'Cover Page'!$B$29","v":"Annual Performance Report 2023"},null,null,null,{"$f":"+'Cover Page'!$B$33","v":"MVV Environment Baldovie Ltd"}]
[]
["Emissions to Water"]
[]
["Summary of monitoring undertaken and compliance"]
["The MG plant is designed for zero emissions to water with process wastes being recycled and re-used within the plant. However, any surplus waste water arising is fed to the sewer and is monitored by Scottish Water under a Trade Effluent Consent. Trade effluent is monitored for pH, Flow and Temperature to comply with the Water Trade Effluent Consent Registration Number 3341A/3 for Lines 1 and 2 Plant and Consent Registration Number 80296A/01/C for Line 3 Plant, Daily visual checks are made on the drainage systems. Water is extracted from the Dighty Burn through a water abstraction licence CAR/1004581. The actual annual abstraction volume is reported in the operational data section."]
[]
["The FB plant uses considerable volumes of water to meet the requirements of the surface condenser and wet cooling tower for evaporation and blowdown."]
[]
["The discharge rate of Trade Effluent from both plants is metered"]
[]
[]
["Commentary on any specific events"]
["Date & Event",null,"Description"]
[]
[]
[]
[]
[]
[]
[]
["Emissions to Water / Sewer"]
["Parameter",null,null,"Monitoring Frequency",null,null,"Limit","Target","Max.","Average"]

{"sheet":"Air (periodic)","index":13,"n_rows":40,"n_cols":13,"rows_kept":40,"cut":false,"hidden":false,"merged":[[18,3,18,4],[27,3,27,4],[33,3,33,4],[19,3,19,4],[20,3,20,4],[21,3,21,4],[22,3,22,4],[23,3,23,4],[24,3,24,4],[31,3,31,4],[25,3,25,4],[26,3,26,4],[28,3,28,4],[13,3,13,4],[14,3,14,4],[15,3,15,4],[16,3,16,4],[17,3,17,4],[38,0,38,9],[19,0,19,1],[20,0,20,1],[21,0,21,1],[34,3,34,4],[35,3,35,4],[33,0,33,1],[34,0,34,1],[35,0,35,1],[36,0,36,1],[24,0,24,1],[32,3,32,4],[39,0,40,9],[25,0,25,1],[26,0,26,1],[22,0,22,1],[23,0,23,1],[37,0,37,1],[27,0,27,1],[28,0,28,1],[29,0,29,1],[30,0,30,1],[31,0,31,1],[32,0,32,1],[37,3,37,4],[29,3,29,4],[30,3,30,4],[36,3,36,4],[16,0,16,1],[17,0,17,1],[18,0,18,1],[13,0,13,1],[14,0,14,1],[15,0,15,1],[12,0,12,1],[11,3,11,4],[12,3,12,4],[9,0,10,1],[9,5,9,9],[9,3,10,4],[9,2,10,2],[5,12,8,15],[9,12,11,15],[8,0,8,9],[5,0,6,9],[11,0,11,1]]}
[{"$f":"+'Cover Page'!$B$29","v":"Annual Performance Report 2023"},null,null,null,{"$f":"+'Cover Page'!$B$33","v":"MVV Environment Baldovie Ltd"}]
[]
["Emissions to Air (periodically monitored)"]
[]
["Summary of monitoring undertaken, standards used and compliance",null,null,null,null,null,null,null,null,null,null,null,"Notes:"]
["Biannual testing of Lines 1 and 2 as per Permit condition 6.4 per the requirements of BS EN ISO/IEC 17025\n\nLine 1:\nFirst half: 17th May – 22nd May. Second half: 16th October - 1st November \n\nLine 2:\nFirst half: 18th May – 25th May. Second half:  16th October - 27th October\n\nLine 3:\nFirst half: 13th - 17th March. Second half: 24th November – 1st December\n\nQuarterly olfactory sampling on lines 1+2 was conducted by a specialised contractor in line with the site permit condition to implement and maintain an Odour Management Plan (OMP). All results submitted to SEPA with the 2023 Quarterly reports.\n\nThe olfactory sampling systems test on line 3 was conducted by a specialised contractor in line with the site permit condition to implement and maintain an Odour Management Plan (OMP)",null,null,null,null,null,null,null,null,null,null,null,"Template may require adjustment for any bespoke monitoring requirements of permit. "]
[]
[]
["Results of emissions to air that are periodically monitored"]
["Substance",null,"Ref. Period","Emission Limit Value",null,"Average",null,null,null,null,null,null,"User to add additional tables as necessary, depending on whether quarterly or bi-annual reporting is required for the compliance year"]
[null,null,null,null,null,"A1","A2","A3","A4","A5"]
["Hydrogen fluoride",null,"1 hr","2 mg/m3",null,6.5000000000000002E-2,6.3500000000000001E-2,4.8500000000000001E-2]
["Cd and Th and their compounds",null,"6-8hrs","0.05 mg/m3",null,1.15E-3,1.2000000000000001E-3,7.9999999999999993E-4]
["Hg and its compounds",null,"6-8hrs","0.05 mg/m3",null,1.5499999999999999E-3,2.1999999999999997E-3,1.16E-3]
["Sb, As, Pb, Cr, Co, Cu, Mn, Ni, V and their compounds",null,"6-8hrs","0.5 mg/m3",null,6.8000000000000005E-2,2.5999999999999999E-2,0.20400000000000001]
["Dioxins & Furans (I-TEQ)",null,"6-8hrs","0.1 ng/m3",null,0.222,8.199999999999999E-3,8.199999999999999E-3]
["PCBs (WHO-TEQ Humans / Mammals)",null,"6-8hrs","None set ng/m3",null,2.8E-3,1.2999999999999999E-3,3.2450000000000001E-3]
["PCBs (WHO-TEQ Fish)",null,"6-8hrs","None set ng/m3",null,1.3999999999999999E-4,6.3999999999999997E-5,5.0545499999999997E-3]
["PCBs (WHO-TEQ Birds)",null,"6-8hrs","None set ng/m3",null,7.1999999999999998E-3,5.1999999999999998E-3,4.8999999999999998E-4]
["Dioxins & Furans (WHO-TEQ Humans / Mammals)",null,"6-8hrs","None set ng/m3",null,0.19241666666666668,9.7999999999999997E-3,8.3000000000000001E-3]
["Dioxins & Furans (WHO-TEQ Fish)",null,"6-8hrs","None set ng/m3",null,0.24096666666666666,1.0499999999999999E-2,8.6E-3]
["Dioxins & Furans (WHO-TEQ Birds)",null,"6-8hrs","None set ng/m3",null,0.43150000000000005,1.4499999999999999E-2,1.405E-2]
["Anthanthrene",null,"6-8hrs","None set µg/m3",null,1.15E-2,9.4999999999999998E-3,6.8999999999999999E-3]
["Benzo(a)anthracene",null,"6-8hrs","None set µg/m3",null,2.4E-2,9.4999999999999998E-3,1.4E-2]
["Benzo(a)pyrene",null,"6-8hrs","None set µg/m3",null,1.7000000000000001E-2,9.4999999999999998E-3,0.01]
["Benzo(b)fluoranthene",null,"6-8hrs","None set µg/m3",null,0.22600000000000001,3.4499999999999996E-2,4.1200000000000001E-2]
["Benzo(b)naptho(2,1-d) thiophene",null,"6-8hrs","None set µg/m3",null,1.15E-2,9.4999999999999998E-3,6.8999999999999999E-3]
["Benzo(c)phenanthrene",null,"6-8hrs","None set µg/m3",null,1.2500000000000001E-2,9.4999999999999998E-3,8.0999999999999996E-3]
["Benzo(ghi)perylene",null,"6-8hrs","None set µg/m3",null,3.2000000000000001E-2,1.0999999999999999E-2,1.7999999999999999E-2]
["Benzo(k)fluoranthene",null,"6-8hrs","None set µg/m3",null,6.6000000000000003E-2,1.2E-2,1.0999999999999999E-2]
["Cholanthrene",null,"6-8hrs","None set µg/m3",null,1.15E-2,9.4999999999999998E-3,6.8999999999999999E-3]
["Chrysene",null,"6-8hrs","None set µg/m3",null,9.6500000000000002E-2,1.6E-2,1.78E-2]
["Cyclopenta(cd)pyrene",null,"6-8hrs","None set µg/m3",null,1.15E-2,1.2E-2,1.6E-2]
["Dibenzo(ai)pyrene",null,"6-8hrs","None set µg/m3",null,1.15E-2,9.4999999999999998E-3,6.8999999999999999E-3]
["Dibenzo(ah)anthracene",null,"6-8hrs","None set µg/m3",null,2.1499999999999998E-2,9.4999999999999998E-3,6.8999999999999999E-3]
["Fluoranthene",null,"6-8hrs","None set µg/m3",null,0.36499999999999999,0.14550000000000002,9.0800000000000006E-2]
["Indeno(123-cd) pyrene",null,"6-8hrs","None set µg/m3",null,9.1000000000000011E-2,1.3000000000000001E-2,7.7499999999999999E-3]
["Naphthalene",null,"6-8hrs","None set µg/m3",null,5.75,7.15,0.72375]
["Comments :"]
["All average results are based on H1 and H2 compliance monitoring only except A1 Dioxin & Furan results which include the SEPA led periodic monitoring and all additional testing. \n\nSEPA led periodic monitoring from the 24th of January - 1st of February resulting in a non-compliant result for PCDD/F (I-TEQ). Following this outcome, 4 x additional dioxin and furan tests were conducted excluding the H1 and H2 complaince monitoring.\n\nA1 H2 Dioxin & Furan (I-TEQ) results exceeded the ELV, monitoring was conducted on the 1st of November and intermediate reports were received on the 29th of January 2024 and submitted to SEPA on the 29th of January 2024, Final reports are still outstanding. The investigation is ongoing.\n\nPCB results are still due for the H2 lines 1&2 compliance regimes, only H1 results are reported. \n\nLine 1 AST returned a failure of the Line 1 duty calibration test for HCl and Line 1 redundant calibration test for SO2 and HCl\n\nLine 2 AST returned a failure of the Line 2 redundant calibration test for CO, N2O, and oxides of nitrogen (as NO2)\n\nLine 3 AST returned a failure of the Line 3 duty calibration test for SO2\n\nAs per the relevant Waste Incineration BAT Conclusions changes, the PPC permit variation was issued with an effective date of the 3rd of December 2023. The daily average emission limit values of the relevant substances were changed and the reporting structure to comply with the BATC. The newly applicable ELVs are detailed below:\n\nThe Hydrogen Fluoride emission limit value was changed from 2 mg/Nm3 to 1 mg/Nm3 on the 3rd of December at 00:00 for all lines.\n\nThe Cadmium and Thallium emission limit value was changed from 0.05 mg/Nm3 to 0.01 mg/Nm3 on the 3rd of December at 00:00 for all lines.\n\nThe Mercury and its compounds emission limit value was changed from 0.05 mg/Nm3 to 0.02 mg/Nm3 on the 3rd of December at 00:00 for all lines.\n\nThe total heavy metal (Sb, As, Pb, Cr, Co, Cu, Mn, Ni and V and their compounds) emission limit value was changed from 0.5 mg/m3 to 0.3 mg/Nm3 on the 3rd of December at 00:00 for all lines.\n\nThe Dioxin and Furan (I-TEQ) emission limit value was changed from 0.1 ng/Nm3 to 0.06 ng/Nm3 on the 3rd of December at 00:00 for all lines.\n\n\n\n\n\n\n\n\n\n"]

{"sheet":"Air (CEMS)","index":14,"n_rows":29,"n_cols":16,"rows_kept":29,"cut":false,"hidden":false,"merged":[[26,0,26,12],[28,0,29,12],[13,0,14,0],[5,0,6,12],[7,0,8,12],[10,0,10,12],[11,0,12,0],[11,2,12,2],[11,1,12,1],[11,3,11,4],[11,5,11,6],[11,7,11,8],[11,9,11,10],[11,11,11,12]]}
[{"$f":"+'Cover Page'!$B$29","v":"Annual Performance Report 2023"},null,null,null,null,null,null,null,{"$f":"+'Cover Page'!$B$33","v":"MVV Environment Baldovie Ltd"}]
[]
["Emissions to Air (continously monitored)"]
[null,null,null,null,null,null,null,null,null,null,null,null,null,null,null,"Notes:"]
["Summary of monitoring undertaken, standards used and compliance",null,null,null,null,null,null,null,null,null,null,null,null,null,null,"Template may require adjustment for any bespoke monitoring requirements of permit"]
["As required by Permit condition 6.2.5, 6.2.8 Continuous Emissions Monitoring System in compliance with QAL3 and the Annual Survaillance Test requirements of BS EN 14181"]
[]
[]
[]
[]
["Results of emissions to air that are continuously monitored"]
["Substance","Reference Period","Emission Limit Value","A1",null,"A2",null,"A3",null,"A4",null,"A5"]
[null,null,null,"Max.","Avg.","Max.","Avg.","Max.","Avg.","Max.","Avg.","Max.","Avg."]
["Oxides of nitrogen","Daily mean","200 mg/m3 ",{"$f":"NOx!$O$19","v":195.6},{"$f":"NOx!$N$19","v":177.75833333333333},{"$f":"OFFSET(NOx!$O$19,15,)","v":192.5},{"$f":"OFFSET(NOx!$N$19,15,)","v":180.05833333333337},{"$f":"OFFSET(NOx!$O$19,30,)","v":182.6},{"$f":"OFFSET(NOx!$N$19,30,)","v":178.06666666666669},"-","-","-","-"]
[null,"½ hourly mean","400 mg/m3 ",{"$f":"NOx!$M$19","v":400.3},{"$f":"NOx!$L$19","v":177.89999999999998},{"$f":"OFFSET(NOx!$M$19,15,)","v":278.7},{"$f":"OFFSET(NOx!$L$19,15,)","v":180.25},{"$f":"OFFSET(NOx!$M$19,30,)","v":287.39999999999998},{"$f":"OFFSET(NOx!$L$19,30,)","v":178.15},"-","-","-","-"]
["Particulates","Daily mean","10 mg/m3",{"$f":"Particulates!$O$19","v":3.4},{"$f":"Particulates!$N$19","v":0.33333333333333326},{"$f":"OFFSET(Particulates!$O$19,15,)","v":2.2000000000000002},{"$f":"OFFSET(Particulates!$N$19,15,)","v":0.36666666666666664},{"$f":"OFFSET(Particulates!$O$19,30,)","v":3.4},{"$f":"OFFSET(Particulates!$N$19,30,)","v":0.15833333333333335},"-","-","-","-"]
[null,"½ hourly mean","30 mg/m3 ",{"$f":"Particulates!$M$19","v":18.2},{"$f":"Particulates!$L$19","v":0.35833333333333334},{"$f":"OFFSET(Particulates!$M$19,15,)","v":8.9},{"$f":"OFFSET(Particulates!$L$19,15,)","v":0.3833333333333333},{"$f":"OFFSET(Particulates!$M$19,30,)","v":25.9},{"$f":"OFFSET(Particulates!$L$19,30,)","v":0.19166666666666668},"-","-","-","-"]
["Total Organic Carbon ","Daily mean","10 mg/m3 ",{"$f":"TOC!$O$19","v":5.3},{"$f":"TOC!$N$19","v":0.70833333333333348},{"$f":"OFFSET(TOC!$O$19,15,)","v":5},{"$f":"OFFSET(TOC!$N$19,15,)","v":0.56666666666666665},{"$f":"OFFSET(TOC!$O$19,30,)","v":9.1},{"$f":"OFFSET(TOC!$N$19,30,)","v":9.9999999999999992E-2},"-","-","-","-"]
[null,"½ hourly mean","20 mg/m3 ",{"$f":"TOC!$M$19","v":91},{"$f":"TOC!$L$19","v":0.69166666666666676},{"$f":"OFFSET(TOC!$M$19,15,)","v":61.1},{"$f":"OFFSET(TOC!$L$19,15,)","v":0.55833333333333324},{"$f":"OFFSET(TOC!$M$19,30,)","v":333.2},{"$f":"OFFSET(TOC!$L$19,30,)","v":0.10833333333333332},"-","-","-","-"]
["Hydrogen chloride ","Daily mean","10 mg/m3 ",{"$f":"HCl!$O$19","v":8.9},{"$f":"HCl!$N$19","v":7.0416666666666679},{"$f":"OFFSET(HCl!$O$19,15,)","v":11.6},{"$f":"OFFSET(HCl!$N$19,15,)","v":7.1500000000000012},{"$f":"OFFSET(HCl!$O$19,30,)","v":4.4000000000000004},{"$f":"OFFSET(HCl!$N$19,30,)","v":2.2833333333333332},"-","-","-","-"]
[null,"½ hourly mean","60 mg/m3 ",{"$f":"HCl!$M$19","v":37.700000000000003},{"$f":"HCl!$L$19","v":7.125},{"$f":"OFFSET(HCl!$M$19,15,)","v":122},{"$f":"OFFSET(HCl!$L$19,15,)","v":7.2499999999999991},{"$f":"OFFSET(HCl!$M$19,30,)","v":15.1},{"$f":"OFFSET(HCl!$L$19,30,)","v":2.35},"-","-","-","-"]
["Sulphur dioxide","Daily mean","50 mg/m3 ",{"$f":"'SO2'!$O$19","v":7.2},{"$f":"'SO2'!$N$19","v":1.2250000000000001},{"$f":"OFFSET('SO2'!$O$19,15,)","v":14},{"$f":"OFFSET('SO2'!$N$19,15,)","v":2.7916666666666665},{"$f":"OFFSET('SO2'!$O$19,30,)","v":64.2},{"$f":"OFFSET('SO2'!$N$19,30,)","v":8.7666666666666657},"-","-","-","-"]
[null,"½ hourly mean","200 mg/m3 ",{"$f":"'SO2'!$M$19","v":38.5},{"$f":"'SO2'!$L$19","v":1.2916666666666667},{"$f":"OFFSET('SO2'!$M$19,15,)","v":55.6},{"$f":"OFFSET('SO2'!$L$19,15,)","v":2.8416666666666668},{"$f":"OFFSET('SO2'!$M$19,30,)","v":380},{"$f":"OFFSET('SO2'!$L$19,30,)","v":8.7750000000000004},"-","-","-","-"]
["Carbon monoxide ","Daily mean","50 mg/m3 ",{"$f":"'CO 95% 10 min'!$Q$19","v":60.9},{"$f":"'CO 95% 10 min'!$P$19","v":23.291666666666668},{"$f":"OFFSET('CO 95% 10 min'!$Q$19,15,)","v":318.7},{"$f":"OFFSET('CO 95% 10 min'!$P$19,15,)","v":23.508333333333336},{"$f":"OFFSET('CO 95% 10 min'!$Q$19,30,)","v":920.3},{"$f":"OFFSET('CO 95% 10 min'!$P$19,30,)","v":16.041666666666668},"-","-","-","-"]
[null,"95%ile 10-min avg ","150 mg/m3",{"$f":"'CO 95% 10 min'!$O$19","v":538.9},{"$f":"'CO 95% 10 min'!$M$19","v":127.25833333333334},{"$f":"OFFSET('CO 95% 10 min'!$O$19,15,)","v":1040.5},{"$f":"OFFSET('CO 95% 10 min'!$M$19,15,)","v":108.08333333333333},{"$f":"OFFSET('CO 95% 10 min'!$O$19,30,)","v":27956.2},{"$f":"OFFSET('CO 95% 10 min'!$M$19,30,)","v":360.01666666666665},"-","-","-","-"]
[" Ammonia","Daily mean","10 mg/m3",{"$f":"'NH3'!$O$19","v":4.2},{"$f":"'NH3'!$N$19","v":0.4916666666666667},{"$f":"OFFSET('NH3'!$O$19,15,)","v":10.4},{"$f":"OFFSET('NH3'!$N$19,15,)","v":0.98333333333333328},{"$f":"OFFSET('NH3'!$O$19,30,)","v":6.1},{"$f":"OFFSET('NH3'!$N$19,30,)","v":0.85833333333333339},"-","-","-","-"]
[]
["Comments :"]
["As per the relevant Waste Incineration BAT Conclusions changes, the PPC permit variation was issued with an effective date of the 3rd of December 2023. The daily average emission limit values of the relevant substances were changed and the reporting structure to comply with the BATC. The newly applicable ELVs are detailed in the relevant sections."]

{"sheet":"HCl","index":15,"n_rows":79,"n_cols":17,"rows_kept":79,"cut":false,"hidden":false,"merged":[[12,16,15,18],[51,9,63,9],[66,9,78,9],[4,9,4,14],[4,1,4,3],[4,4,4,6],[48,0,51,6],[47,0,47,6],[6,9,18,9],[21,9,33,9],[36,9,48,9],[3,16,7,18],[9,16,11,18]]}
[{"$f":"+'Cover Page'!$B$29","v":"Annual Performance Report 2023"},null,null,null,{"$f":"+'Cover Page'!$B$33","v":"MVV Environment Baldovie Ltd"}]
[]
["Monitoring of Hydrogen Chloride emissions",null,null,"Whole Installation",null,null,null,null,null,{"$f":"+A3","v":"Monitoring of Hydrogen Chloride emissions"},null,null,null,"Per Combustion Line",null,null,"Notes:"]
[null,null,null,null,null,null,null,null,null,null,null,null,null,null,null,null,"User to add logic to complete Whole installation, Table A5:G18. From the data in Per Combustion Line, Table J6:O79, subject to No. of lines installed"]
["mg/Nm3","1/2 Hourly Reference Periods",null,null,"Daily Reference Periods"]
[{"$f":"+'Cover Page'!C39","v":2023},"1/2 hourly HCl ELV","Monthly 1/2 hourly mean","Highest 1/2 hourly maximum","Daily HCl ELV","Monthly daily mean","Highest daily maximum",null,null,{"$f":"+A6","v":2023},"mg/Nm3","Monthly 1/2 hourly mean","Monthly 1/2 hourly maximum","Monthly daily mean","Monthly daily maximum"]
["Jan",60,{"$f":"AVERAGE(L7,L22,L37)","v":5.8666666666666671},{"$f":"MAX(M7,M22,M37)","v":12.4},10,{"$f":"AVERAGE(N7,N22,N37)","v":5.8000000000000007},{"$f":"MAX(O7,O22,O37)","v":8.8000000000000007},null,null,"A1","Jan",7.1,12.4,6.9,8.5]
["Feb",60,{"$f":"AVERAGE(L8,L23,L38)","v":5.8999999999999995},{"$f":"MAX(M8,M23,M38)","v":16},10,{"$f":"AVERAGE(N8,N23,N38)","v":5.833333333333333},7.6,null,null,null,"Feb",7.1,16,7,7.4]
["Mar",60,5.6000000000000005,38.700000000000003,10,5.3999999999999995,8.6,null,null,null,"Mar",7,37.700000000000003,6.8,7.8,null,"Whole Installation table A5:G18:"]
["Apr",60,6.166666666666667,23.1,10,6.1999999999999993,11.6,null,null,null,"Apr",7.8,12.6,7.8,8.9,null,"Mean: for 1/2 hourly and daily periods calculate mean of values across all operational combustion lines for the month"]
["May",60,5.833333333333333,17,10,5.8,8.1999999999999993,null,null,null,"May",7.3,12.3,7.3,8.1]
["Jun",60,5.8666666666666671,17.100000000000001,10,5.833333333333333,8.4,null,null,null,"Jun",7.3,9.1999999999999993,7.2,8.4]
["Jul",60,5.8000000000000007,17.899999999999999,10,5.7,8.3000000000000007,null,null,null,"Jul",7.5,17.899999999999999,7.5,8.3000000000000007,null,"Maximum: for 1/2 hourly and daily periods use the highest value across all operational combustion lines for the month"]
["Aug",60,5.3,25.6,10,5.2333333333333334,7.8,null,null,null,"Aug",6.7,8.9,6.6,7.7]
["Sep",60,5,9.9,10,4.9000000000000004,8.1999999999999993,null,null,null,"Sep",7.4,9.9,7.4,8.1999999999999993]
["Oct",60,5.333333333333333,122,10,5.0999999999999996,9.3000000000000007,null,null,null,"Oct",6.8,12.8,6.7,7.8]
["Nov",60,5.3666666666666671,16.5,10,5.3,8.1999999999999993,null,null,null,"Nov",7,16.2,6.9,7.8]
["Dec",60,4.8666666666666663,47,8,{"$f":"AVERAGE(N18,N33,N48)","v":4.8},7.9,null,null,null,"Dec",6.5,14.2,6.4,7]
[null,null,null,null,null,null,null,null,null,null,"Annual",{"$f":"AVERAGE(L7:L18)","v":7.125},{"$f":"MAX(M7:M18)","v":37.700000000000003},{"$f":"AVERAGE(N7:N18)","v":7.0416666666666679},{"$f":"MAX(O7:O18)","v":8.9}]
[]
[null,null,null,null,null,null,null,null,null,{"$f":"+A6","v":2023},"mg/Nm3","Monthly 1/2 hourly mean","Monthly 1/2 hourly maximum","Monthly daily mean","Monthly daily maximum"]
[null,null,null,null,null,null,null,null,null,"A2","Jan",7.2,10.199999999999999,7.2,8.8000000000000007]
[null,null,null,null,null,null,null,null,null,null,"Feb",7.1,15.1,7.1,7.6]
[null,null,null,null,null,null,null,null,null,null,"Mar",7.1,38.700000000000003,6.8,8.6]
[null,null,null,null,null,null,null,null,null,null,"Apr",8,23.1,8.1,11.6]
[null,null,null,null,null,null,null,null,null,null,"May",7.6,17,7.6,8.1999999999999993]
[null,null,null,null,null,null,null,null,null,null,"Jun",7.7,17.100000000000001,7.7,8.4]
[null,null,null,null,null,null,null,null,null,null,"Jul",7.8,10.4,7.6,8.3000000000000007]
[null,null,null,null,null,null,null,null,null,null,"Aug",7.3,25.6,7.2,7.8]
[null,null,null,null,null,null,null,null,null,null,"Sep",5.6,9.3000000000000007,5.4,7.7]
[null,null,null,null,null,null,null,null,null,null,"Oct",7.5,122,7,9.3000000000000007]
[null,null,null,null,null,null,null,null,null,null,"Nov",7.6,16.5,7.6,8.1999999999999993]
[null,null,null,null,null,null,null,null,null,null,"Dec",6.5,47,6.5,7.9]
[null,null,null,null,null,null,null,null,null,null,"Annual",{"$f":"AVERAGE(L22:L33)","v":7.2499999999999991},{"$f":"MAX(M22:M33)","v":122},{"$f":"AVERAGE(N22:N33)","v":7.1500000000000012},{"$f":"MAX(O22:O33)","v":11.6}]
[]
[null,null,null,null,null,null,null,null,null,{"$f":"+A6","v":2023},"mg/Nm3","Monthly 1/2 hourly mean","Monthly 1/2 hourly maximum","Monthly daily mean","Monthly daily maximum"]
[null,null,null,null,null,null,null,null,null,"A3","Jan",3.3,7.4,3.3,4.3]
[null,null,null,null,null,null,null,null,null,null,"Feb",3.5,7.7,3.4,4.0999999999999996]
[null,null,null,null,null,null,null,null,null,null,"Mar",2.7,8.6,2.6,4.4000000000000004]
[null,null,null,null,null,null,null,null,null,null,"Apr",2.7,6.9,2.7,3.9]
[null,null,null,null,null,null,null,null,null,null,"May",2.6,6.6,2.5,3.2]
[null,null,null,null,null,null,null,null,null,null,"Jun",2.6,10.199999999999999,2.6,4.3]
[null,null,null,null,null,null,null,null,null,null,"Jul",2.1,6.9,2,2.9]
[null,null,null,null,null,null,null,null,null,null,"Aug",1.9,15.1,1.9,2.8]
[null,null,null,null,null,null,null,null,null,null,"Sep",2,5.3,1.9,2.7]
[null,null,null,null,null,null,null,null,null,null,"Oct",1.7,7.2,1.6,3.2]
[null,null,null,null,null,null,null,null,null,null,"Nov",1.5,5.0999999999999996,1.4,2.6]
["Comments :",null,null,null,null,null,null,null,null,null,"Dec",1.6,4.3,1.5,2.5]
["HCl daily average emission limit was changed from 10 mg/m3 to 8 mg/Nm3 on the 3rd of December at 00:00 for all lines.\n\nLine 2 had 1 instance of an HCl daily average exceedance. ",null,null,null,null,null,null,null,null,null,"Annual",{"$f":"AVERAGE(L37:L48)","v":2.35},{"$f":"MAX(M37:M48)","v":15.1},{"$f":"AVERAGE(N37:N48)","v":2.2833333333333332},{"$f":"MAX(O37:O48)","v":4.4000000000000004}]
[]
[null,null,null,null,null,null,null,null,null,{"$f":"+A6","v":2023},"mg/Nm3","Monthly 1/2 hourly mean","Monthly 1/2 hourly maximum","Monthly daily mean","Monthly daily maximum"]
[null,null,null,null,null,null,null,null,null,"A4","Jan"]
[null,null,null,null,null,null,null,null,null,null,"Feb"]
[null,null,null,null,null,null,null,null,null,null,"Mar"]
[null,null,null,null,null,null,null,null,null,null,"Apr"]
[null,null,null,null,null,null,null,null,null,null,"May"]
[null,null,null,null,null,null,null,null,null,null,"Jun"]
[null,null,null,null,null,null,null,null,null,null,"Jul"]
[null,null,null,null,null,null,null,null,null,null,"Aug"]
[null,null,null,null,null,null,null,null,null,null,"Sep"]
[null,null,null,null,null,null,null,null,null,null,"Oct"]
[null,null,null,null,null,null,null,null,null,null,"Nov"]
[null,null,null,null,null,null,null,null,null,null,"Dec"]
[null,null,null,null,null,null,null,null,null,null,"Annual",{"$f":"AVERAGE(L52:L63)","v":{"$error":"#DIV/0!"}},{"$f":"MAX(M52:M63)","v":0},{"$f":"AVERAGE(N52:N63)","v":{"$error":"#DIV/0!"}},{"$f":"MAX(O52:O63)","v":0}]
[]
[null,null,null,null,null,null,null,null,null,{"$f":"+A6","v":2023},"mg/Nm3","Monthly 1/2 hourly mean","Monthly 1/2 hourly maximum","Monthly daily mean","Monthly daily maximum"]
[null,null,null,null,null,null,null,null,null,"A5","Jan"]
[null,null,null,null,null,null,null,null,null,null,"Feb"]
[null,null,null,null,null,null,null,null,null,null,"Mar"]
[null,null,null,null,null,null,null,null,null,null,"Apr"]
[null,null,null,null,null,null,null,null,null,null,"May"]
[null,null,null,null,null,null,null,null,null,null,"Jun"]
[null,null,null,null,null,null,null,null,null,null,"Jul"]
[null,null,null,null,null,null,null,null,null,null,"Aug"]
[null,null,null,null,null,null,null,null,null,null,"Sep"]
[null,null,null,null,null,null,null,null,null,null,"Oct"]
[null,null,null,null,null,null,null,null,null,null,"Nov"]
[null,null,null,null,null,null,null,null,null,null,"Dec"]
[null,null,null,null,null,null,null,null,null,null,"Annual",{"$f":"AVERAGE(L67:L78)","v":{"$error":"#DIV/0!"}},{"$f":"MAX(M67:M78)","v":0},{"$f":"AVERAGE(N67:N78)","v":{"$error":"#DIV/0!"}},{"$f":"MAX(O67:O78)","v":0}]

{"sheet":"SO2","index":16,"n_rows":79,"n_cols":17,"rows_kept":79,"cut":false,"hidden":false,"merged":[[3,16,7,18],[9,16,11,18],[12,16,15,18],[66,9,78,9],[4,1,4,3],[4,4,4,6],[4,9,4,14],[6,9,18,9],[21,9,33,9],[36,9,48,9],[47,0,47,6],[48,0,51,6],[51,9,63,9]]}
[{"$f":"+'Cover Page'!$B$29","v":"Annual Performance Report 2023"},null,null,null,{"$f":"+'Cover Page'!$B$33","v":"MVV Environment Baldovie Ltd"}]
[]
["Monitoring of Sulphur dioxide emissions",null,null,"Whole Installation",null,null,null,null,null,{"$f":"+A3","v":"Monitoring of Sulphur dioxide emissions"},null,null,null,"Per Combustion Line",null,null,"Notes:"]
[null,null,null,null,null,null,null,null,null,null,null,null,null,null,null,null,"User to add logic to complete Whole installation, Table A5:G18. From the data in Per Combustion Line, Table J6:O79, subject to No. of lines installed"]
["mg/Nm3","1/2 Hourly Reference Periods",null,null,"Daily Reference Periods"]
[{"$f":"+'Cover Page'!C39","v":2023},"1/2 hourly SO2 ELV","Monthly 1/2 hourly mean","Highest 1/2 hourly maximum","Daily SO2 ELV","Monthly daily mean","Highest daily maximum",null,null,{"$f":"+A6","v":2023},"mg/Nm3","Monthly 1/2 hourly mean","Monthly 1/2 hourly maximum","Monthly daily mean","Monthly daily maximum"]
["Jan",200,{"$f":"AVERAGE(L7,L22,L37)","v":3.1666666666666665},{"$f":"MAX(M7,M22,M37)","v":26.4},50,{"$f":"AVERAGE(N7,N22,N37)","v":3.1333333333333333},{"$f":"MAX(O7,O22,O37)","v":9.5},null,null,"A1","Jan",0.2,4.5999999999999996,0.2,1.4]
["Feb",200,{"$f":"AVERAGE(L8,L23,L38)","v":3.6333333333333333},{"$f":"MAX(M8,M23,M38)","v":60.8},50,{"$f":"AVERAGE(N8,N23,N38)","v":3.5666666666666664},10,null,null,null,"Feb",1,15,0.9,3.5]
["Mar",200,3.5333333333333337,63.8,50,3.4333333333333331,11.2,null,null,null,"Mar",0.3,38.5,0.2,1.3,null,"Whole Installation table A5:G18:"]
["Apr",200,5.2,40.4,50,5.2,14,null,null,null,"Apr",1.8,10.9,1.6,4.7,null,"Mean: for 1/2 hourly and daily periods calculate mean of values across all operational combustion lines for the month"]
["May",200,3.8666666666666671,150.9,50,3.7000000000000006,10.5,null,null,null,"May",0.2,3.2,0.2,1.3]
["Jun",200,4.8,380,50,5.1000000000000005,64.2,null,null,null,"Jun",0.3,4.5,0.3,1]
["Jul",200,3.7666666666666671,26.4,50,3.6999999999999997,8.9,null,null,null,"Jul",0.9,7.1,0.9,2.8,null,"Maximum: for 1/2 hourly and daily periods use the highest value across all operational combustion lines for the month"]
["Aug",200,3.5333333333333332,63.1,50,3.4666666666666663,9.3000000000000007,null,null,null,"Aug",0.7,6.2,0.6,2.9]
["Sep",200,3.8666666666666667,16.7,50,3.8333333333333335,8.6,null,null,null,"Sep",2,14.5,2,7.2]
["Oct",200,5.166666666666667,55.6,50,5.0333333333333332,12.1,null,null,null,"Oct",2,13.2,2.1,5.9]
["Nov",200,6.3666666666666671,33.299999999999997,50,6.2333333333333334,12.8,null,null,null,"Nov",4.2,17.3,3.9,7.1]
["Dec",200,4.7333333333333334,28.6,20,{"$f":"AVERAGE(N18,N33,N48)","v":4.7333333333333334},11.1,null,null,null,"Dec",1.9,10.1,1.8,3.2]
[null,null,null,null,null,null,null,null,null,null,"Annual",{"$f":"AVERAGE(L7:L18)","v":1.2916666666666667},{"$f":"MAX(M7:M18)","v":38.5},{"$f":"AVERAGE(N7:N18)","v":1.2250000000000001},{"$f":"MAX(O7:O18)","v":7.2}]
[]
[null,null,null,null,null,null,null,null,null,{"$f":"+A6","v":2023},"mg/Nm3","Monthly 1/2 hourly mean","Monthly 1/2 hourly maximum","Monthly daily mean","Monthly daily maximum"]
[null,null,null,null,null,null,null,null,null,"A2","Jan",0.6,18.5,0.6,3.5]
[null,null,null,null,null,null,null,null,null,null,"Feb",0.9,19.8,0.8,3.6]
[null,null,null,null,null,null,null,null,null,null,"Mar",1.5,28.9,1.4,9.6]
[null,null,null,null,null,null,null,null,null,null,"Apr",5.2,40.4,5.5,14]
[null,null,null,null,null,null,null,null,null,null,"May",2.1,7.2,2.1,3.9]
[null,null,null,null,null,null,null,null,null,null,"Jun",2,9.9,2,3.2]
[null,null,null,null,null,null,null,null,null,null,"Jul",2.1,11.8,2,3.7]
[null,null,null,null,null,null,null,null,null,null,"Aug",1.7,6,1.7,4.0999999999999996]
[null,null,null,null,null,null,null,null,null,null,"Sep",1.6,7.4,1.5,2.9]
[null,null,null,null,null,null,null,null,null,null,"Oct",5.3,55.6,4.8,9.6999999999999993]
[null,null,null,null,null,null,null,null,null,null,"Nov",6.9,33.299999999999997,6.8,12.8]
[null,null,null,null,null,null,null,null,null,null,"Dec",4.2,28.6,4.3,9]
[null,null,null,null,null,null,null,null,null,null,"Annual",{"$f":"AVERAGE(L22:L33)","v":2.8416666666666668},{"$f":"MAX(M22:M33)","v":55.6},{"$f":"AVERAGE(N22:N33)","v":2.7916666666666665},{"$f":"MAX(O22:O33)","v":14}]
[]
[null,null,null,null,null,null,null,null,null,{"$f":"+A6","v":2023},"mg/Nm3","Monthly 1/2 hourly mean","Monthly 1/2 hourly maximum","Monthly daily mean","Monthly daily maximum"]
[null,null,null,null,null,null,null,null,null,"A3","Jan",8.6999999999999993,26.4,8.6,9.5]
[null,null,null,null,null,null,null,null,null,null,"Feb",9,60.8,9,10]
[null,null,null,null,null,null,null,null,null,null,"Mar",8.8000000000000007,63.8,8.6999999999999993,11.2]
[null,null,null,null,null,null,null,null,null,null,"Apr",8.6,28.9,8.5,9.5]
[null,null,null,null,null,null,null,null,null,null,"May",9.3000000000000007,150.9,8.8000000000000007,10.5]
[null,null,null,null,null,null,null,null,null,null,"Jun",12.1,380,13,64.2]
[null,null,null,null,null,null,null,null,null,null,"Jul",8.3000000000000007,26.4,8.1999999999999993,8.9]
[null,null,null,null,null,null,null,null,null,null,"Aug",8.1999999999999993,63.1,8.1,9.3000000000000007]
[null,null,null,null,null,null,null,null,null,null,"Sep",8,16.7,8,8.6]
[null,null,null,null,null,null,null,null,null,null,"Oct",8.1999999999999993,40.799999999999997,8.1999999999999993,12.1]
[null,null,null,null,null,null,null,null,null,null,"Nov",8,20.9,8,8.4]
["Comments :",null,null,null,null,null,null,null,null,null,"Dec",8.1,20.7,8.1,11.1]
["SO2 daily average emission limit was changed from 50 mg/m3 to 20 mg/Nm3 on the 3rd of December at 00:00 for all lines.\n\nLine 3 had 2 instances of an SO2 daily average exceedances. ",null,null,null,null,null,null,null,null,null,"Annual",{"$f":"AVERAGE(L37:L48)","v":8.7750000000000004},{"$f":"MAX(M37:M48)","v":380},{"$f":"AVERAGE(N37:N48)","v":8.7666666666666657},{"$f":"MAX(O37:O48)","v":64.2}]
[]
[null,null,null,null,null,null,null,null,null,{"$f":"+A6","v":2023},"mg/Nm3","Monthly 1/2 hourly mean","Monthly 1/2 hourly maximum","Monthly daily mean","Monthly daily maximum"]
[null,null,null,null,null,null,null,null,null,"A4","Jan"]
[null,null,null,null,null,null,null,null,null,null,"Feb"]
[null,null,null,null,null,null,null,null,null,null,"Mar"]
[null,null,null,null,null,null,null,null,null,null,"Apr"]
[null,null,null,null,null,null,null,null,null,null,"May"]
[null,null,null,null,null,null,null,null,null,null,"Jun"]
[null,null,null,null,null,null,null,null,null,null,"Jul"]
[null,null,null,null,null,null,null,null,null,null,"Aug"]
[null,null,null,null,null,null,null,null,null,null,"Sep"]
[null,null,null,null,null,null,null,null,null,null,"Oct"]
[null,null,null,null,null,null,null,null,null,null,"Nov"]
[null,null,null,null,null,null,null,null,null,null,"Dec"]
[null,null,null,null,null,null,null,null,null,null,"Annual",{"$f":"AVERAGE(L52:L63)","v":{"$error":"#DIV/0!"}},{"$f":"MAX(M52:M63)","v":0},{"$f":"AVERAGE(N52:N63)","v":{"$error":"#DIV/0!"}},{"$f":"MAX(O52:O63)","v":0}]
[]
[null,null,null,null,null,null,null,null,null,{"$f":"+A6","v":2023},"mg/Nm3","Monthly 1/2 hourly mean","Monthly 1/2 hourly maximum","Monthly daily mean","Monthly daily maximum"]
[null,null,null,null,null,null,null,null,null,"A5","Jan"]
[null,null,null,null,null,null,null,null,null,null,"Feb"]
[null,null,null,null,null,null,null,null,null,null,"Mar"]
[null,null,null,null,null,null,null,null,null,null,"Apr"]
[null,null,null,null,null,null,null,null,null,null,"May"]
[null,null,null,null,null,null,null,null,null,null,"Jun"]
[null,null,null,null,null,null,null,null,null,null,"Jul"]
[null,null,null,null,null,null,null,null,null,null,"Aug"]
[null,null,null,null,null,null,null,null,null,null,"Sep"]
[null,null,null,null,null,null,null,null,null,null,"Oct"]
[null,null,null,null,null,null,null,null,null,null,"Nov"]
[null,null,null,null,null,null,null,null,null,null,"Dec"]
[null,null,null,null,null,null,null,null,null,null,"Annual",{"$f":"AVERAGE(L67:L78)","v":{"$error":"#DIV/0!"}},{"$f":"MAX(M67:M78)","v":0},{"$f":"AVERAGE(N67:N78)","v":{"$error":"#DIV/0!"}},{"$f":"MAX(O67:O78)","v":0}]

{"sheet":"NOx","index":17,"n_rows":79,"n_cols":17,"rows_kept":79,"cut":false,"hidden":false,"merged":[[3,16,7,18],[9,16,11,18],[12,16,15,18],[66,9,78,9],[4,1,4,3],[4,4,4,6],[4,9,4,14],[6,9,18,9],[21,9,33,9],[36,9,48,9],[47,0,47,6],[48,0,51,6],[51,9,63,9]]}
[{"$f":"+'Cover Page'!$B$29","v":"Annual Performance Report 2023"},null,null,null,{"$f":"+'Cover Page'!$B$33","v":"MVV Environment Baldovie Ltd"}]
[]
["Monitoring of Oxides of Nitrogen emissions",null,null,"Whole Installation",null,null,null,null,null,{"$f":"+A3","v":"Monitoring of Oxides of Nitrogen emissions"},null,null,null,"Per Combustion Line",null,null,"Notes:"]
[null,null,null,null,null,null,null,null,null,null,null,null,null,null,null,null,"User to add logic to complete Whole installation, Table A5:G18. From the data in Per Combustion Line, Table J6:O79, subject to No. of lines installed"]
["mg/Nm3","1/2 Hourly Reference Periods",null,null,"Daily Reference Periods"]
[{"$f":"+'Cover Page'!C39","v":2023},"1/2 hourly NOx ELV","Monthly 1/2 hourly mean","Highest 1/2 hourly maximum","Daily NOx ELV","Monthly daily mean","Highest daily maximum",null,null,{"$f":"+A6","v":2023},"mg/Nm3","Monthly 1/2 hourly mean","Monthly 1/2 hourly maximum","Monthly daily mean","Monthly daily maximum"]
["Jan",400,{"$f":"AVERAGE(L7,L22,L37)","v":177.23333333333332},{"$f":"MAX(M7,M22,M37)","v":312},200,{"$f":"AVERAGE(N7,N22,N37)","v":177.30000000000004},{"$f":"MAX(O7,O22,O37)","v":184.3},null,null,"A1","Jan",175.6,312,175.9,184.3]
["Feb",400,{"$f":"AVERAGE(L8,L23,L38)","v":182.20000000000002},{"$f":"MAX(M8,M23,M38)","v":301.8},200,{"$f":"AVERAGE(N8,N23,N38)","v":182.23333333333335},192.7,null,null,null,"Feb",182.6,301.8,182.9,192.7]
["Mar",400,181.63333333333333,400.3,200,181.43333333333331,187,null,null,null,"Mar",181.7,400.3,181.1,186.8,null,"Whole Installation table A5:G18:"]
["Apr",400,176.46666666666667,266.5,200,175.93333333333331,181.8,null,null,null,"Apr",175.3,246.1,174.1,178.3,null,"Mean: for 1/2 hourly and daily periods calculate mean of values across all operational combustion lines for the month"]
["May",400,177.36666666666667,259.60000000000002,200,177.43333333333331,184.4,null,null,null,"May",176,189.7,176,176.7]
["Jun",400,179.76666666666665,250.5,200,179.46666666666667,185,null,null,null,"Jun",176.2,250.5,176.1,180.1]
["Jul",400,180.23333333333335,253.9,200,180.16666666666666,189.5,null,null,null,"Jul",176.1,247.5,176.1,179.6,null,"Maximum: for 1/2 hourly and daily periods use the highest value across all operational combustion lines for the month"]
["Aug",400,179.93333333333331,254.8,200,179.9666666666667,191.7,null,null,null,"Aug",179.6,254.8,179.7,190.1]
["Sep",400,181.86666666666667,277.3,200,181.79999999999998,187.5,null,null,null,"Sep",182.2,277.3,182.2,187.5]
["Oct",400,179.43333333333331,341.3,200,179,195.6,null,null,null,"Oct",180.1,341.3,180.5,195.6]
["Nov",400,179.79999999999998,262.3,200,179.76666666666665,187.2,null,null,null,"Nov",179.1,262.3,179.1,187.2]
["Dec",400,169.26666666666665,325.3,180,{"$f":"AVERAGE(N18,N33,N48)","v":169.03333333333333},176.8,null,null,null,"Dec",170.3,325.3,169.4,176.8]
[null,null,null,null,null,null,null,null,null,null,"Annual",{"$f":"AVERAGE(L7:L18)","v":177.89999999999998},{"$f":"MAX(M7:M18)","v":400.3},{"$f":"AVERAGE(N7:N18)","v":177.75833333333333},{"$f":"MAX(O7:O18)","v":195.6}]
[]
[null,null,null,null,null,null,null,null,null,{"$f":"+A6","v":2023},"mg/Nm3","Monthly 1/2 hourly mean","Monthly 1/2 hourly maximum","Monthly daily mean","Monthly daily maximum"]
[null,null,null,null,null,null,null,null,null,"A2","Jan",175.2,207.3,175.2,177.9]
[null,null,null,null,null,null,null,null,null,null,"Feb",183.1,231.1,183,192.5]
[null,null,null,null,null,null,null,null,null,null,"Mar",183.2,278.7,183.2,187]
[null,null,null,null,null,null,null,null,null,null,"Apr",174.2,236.6,173.8,180.3]
[null,null,null,null,null,null,null,null,null,null,"May",178.8,234,178.7,184.4]
[null,null,null,null,null,null,null,null,null,null,"Jun",183.9,220.9,183.9,185]
[null,null,null,null,null,null,null,null,null,null,"Jul",184.1,253.9,184,189.5]
[null,null,null,null,null,null,null,null,null,null,"Aug",182.3,251.5,182.4,191.7]
[null,null,null,null,null,null,null,null,null,null,"Sep",184,211.7,183.8,185.1]
[null,null,null,null,null,null,null,null,null,null,"Oct",182.5,211,180.9,184.4]
[null,null,null,null,null,null,null,null,null,null,"Nov",183.1,206.8,183,184.5]
[null,null,null,null,null,null,null,null,null,null,"Dec",168.6,198.6,168.8,175.1]
[null,null,null,null,null,null,null,null,null,null,"Annual",{"$f":"AVERAGE(L22:L33)","v":180.25},{"$f":"MAX(M22:M33)","v":278.7},{"$f":"AVERAGE(N22:N33)","v":180.05833333333337},{"$f":"MAX(O22:O33)","v":192.5}]
[]
[null,null,null,null,null,null,null,null,null,{"$f":"+A6","v":2023},"mg/Nm3","Monthly 1/2 hourly mean","Monthly 1/2 hourly maximum","Monthly daily mean","Monthly daily maximum"]
[null,null,null,null,null,null,null,null,null,"A3","Jan",180.9,219.3,180.8,182.4]
[null,null,null,null,null,null,null,null,null,null,"Feb",180.9,246.6,180.8,182.6]
[null,null,null,null,null,null,null,null,null,null,"Mar",180,220.7,180,181.4]
[null,null,null,null,null,null,null,null,null,null,"Apr",179.9,266.5,179.9,181.8]
[null,null,null,null,null,null,null,null,null,null,"May",177.3,259.60000000000002,177.6,180.8]
[null,null,null,null,null,null,null,null,null,null,"Jun",179.2,232.9,178.4,182.1]
[null,null,null,null,null,null,null,null,null,null,"Jul",180.5,222.8,180.4,182.3]
[null,null,null,null,null,null,null,null,null,null,"Aug",177.9,222.4,177.8,181.6]
[null,null,null,null,null,null,null,null,null,null,"Sep",179.4,209.6,179.4,181.9]
[null,null,null,null,null,null,null,null,null,null,"Oct",175.7,287.39999999999998,175.6,181.2]
[null,null,null,null,null,null,null,null,null,null,"Nov",177.2,205,177.2,181.7]
["Comments :",null,null,null,null,null,null,null,null,null,"Dec",168.9,221.5,168.9,172.3]
["NOx daily average emission limit was changed from 200 mg/m3 to 180 mg/Nm3 on the 3rd of December at 00:00 for all lines.",null,null,null,null,null,null,null,null,null,"Annual",{"$f":"AVERAGE(L37:L48)","v":178.15},{"$f":"MAX(M37:M48)","v":287.39999999999998},{"$f":"AVERAGE(N37:N48)","v":178.06666666666669},{"$f":"MAX(O37:O48)","v":182.6}]
[]
[null,null,null,null,null,null,null,null,null,{"$f":"+A6","v":2023},"mg/Nm3","Monthly 1/2 hourly mean","Monthly 1/2 hourly maximum","Monthly daily mean","Monthly daily maximum"]
[null,null,null,null,null,null,null,null,null,"A4","Jan"]
[null,null,null,null,null,null,null,null,null,null,"Feb"]
[null,null,null,null,null,null,null,null,null,null,"Mar"]
[null,null,null,null,null,null,null,null,null,null,"Apr"]
[null,null,null,null,null,null,null,null,null,null,"May"]
[null,null,null,null,null,null,null,null,null,null,"Jun"]
[null,null,null,null,null,null,null,null,null,null,"Jul"]
[null,null,null,null,null,null,null,null,null,null,"Aug"]
[null,null,null,null,null,null,null,null,null,null,"Sep"]
[null,null,null,null,null,null,null,null,null,null,"Oct"]
[null,null,null,null,null,null,null,null,null,null,"Nov"]
[null,null,null,null,null,null,null,null,null,null,"Dec"]
[null,null,null,null,null,null,null,null,null,null,"Annual",{"$f":"AVERAGE(L52:L63)","v":{"$error":"#DIV/0!"}},{"$f":"MAX(M52:M63)","v":0},{"$f":"AVERAGE(N52:N63)","v":{"$error":"#DIV/0!"}},{"$f":"MAX(O52:O63)","v":0}]
[]
[null,null,null,null,null,null,null,null,null,{"$f":"+A6","v":2023},"mg/Nm3","Monthly 1/2 hourly mean","Monthly 1/2 hourly maximum","Monthly daily mean","Monthly daily maximum"]
[null,null,null,null,null,null,null,null,null,"A5","Jan"]
[null,null,null,null,null,null,null,null,null,null,"Feb"]
[null,null,null,null,null,null,null,null,null,null,"Mar"]
[null,null,null,null,null,null,null,null,null,null,"Apr"]
[null,null,null,null,null,null,null,null,null,null,"May"]
[null,null,null,null,null,null,null,null,null,null,"Jun"]
[null,null,null,null,null,null,null,null,null,null,"Jul"]
[null,null,null,null,null,null,null,null,null,null,"Aug"]
[null,null,null,null,null,null,null,null,null,null,"Sep"]
[null,null,null,null,null,null,null,null,null,null,"Oct"]
[null,null,null,null,null,null,null,null,null,null,"Nov"]
[null,null,null,null,null,null,null,null,null,null,"Dec"]
[null,null,null,null,null,null,null,null,null,null,"Annual",{"$f":"AVERAGE(L67:L78)","v":{"$error":"#DIV/0!"}},{"$f":"MAX(M67:M78)","v":0},{"$f":"AVERAGE(N67:N78)","v":{"$error":"#DIV/0!"}},{"$f":"MAX(O67:O78)","v":0}]

{"sheet":"TOC","index":18,"n_rows":79,"n_cols":17,"rows_kept":79,"cut":false,"hidden":false,"merged":[[3,16,7,18],[9,16,11,18],[12,16,15,18],[66,9,78,9],[4,1,4,3],[4,4,4,6],[4,9,4,14],[6,9,18,9],[21,9,33,9],[36,9,48,9],[47,0,47,6],[48,0,51,6],[51,9,63,9]]}
[{"$f":"+'Cover Page'!$B$29","v":"Annual Performance Report 2023"},null,null,null,{"$f":"+'Cover Page'!$B$33","v":"MVV Environment Baldovie Ltd"}]
[]
["Monitoring of Total organic carbon emissions",null,null,"Whole Installation",null,null,null,null,null,{"$f":"+A3","v":"Monitoring of Total organic carbon emissions"},null,null,null,"Per Combustion Line",null,null,"Notes:"]
[null,null,null,null,null,null,null,null,null,null,null,null,null,null,null,null,"User to add logic to complete Whole installation, Table A5:G18. From the data in Per Combustion Line, Table J6:O79, subject to No. of lines installed"]
["mg/Nm3","1/2 Hourly Reference Periods",null,null,"Daily Reference Periods"]
[{"$f":"+'Cover Page'!C39","v":2023},"1/2 hourly TOC ELV","Monthly 1/2 hourly mean","Highest 1/2 hourly maximum","Daily TOC ELV","Monthly daily mean","Highest daily maximum",null,null,{"$f":"+A6","v":2023},"mg/Nm3","Monthly 1/2 hourly mean","Monthly 1/2 hourly maximum","Monthly daily mean","Monthly daily maximum"]
["Jan",20,{"$f":"AVERAGE(L7,L22,L37)","v":0.43333333333333329},{"$f":"MAX(M7,M22,M37)","v":61.1},10,{"$f":"AVERAGE(N7,N22,N37)","v":0.39999999999999997},{"$f":"MAX(O7,O22,O37)","v":1.8},null,null,"A1","Jan",0.6,12.7,0.6,1.2]
["Feb",20,{"$f":"AVERAGE(L8,L23,L38)","v":0.6333333333333333},{"$f":"MAX(M8,M23,M38)","v":333.2},10,{"$f":"AVERAGE(N8,N23,N38)","v":0.6333333333333333},9.1,null,null,null,"Feb",0.7,41.8,0.7,1.4]
["Mar",20,0.53333333333333333,91,10,0.56666666666666676,4.2,null,null,null,"Mar",1,91,1.1000000000000001,4.2,null,"Whole Installation table A5:G18:"]
["Apr",20,0.66666666666666663,12.1,10,0.66666666666666663,2,null,null,null,"Apr",0.8,12.1,0.8,2,null,"Mean: for 1/2 hourly and daily periods calculate mean of values across all operational combustion lines for the month"]
["May",20,0.70000000000000007,17.600000000000001,10,0.6333333333333333,2.2999999999999998,null,null,null,"May",0.8,17.600000000000001,0.7,1.4]
["Jun",20,0.56666666666666665,37.6,10,0.56666666666666665,7.2,null,null,null,"Jun",0.8,20.7,0.7,1.8]
["Jul",20,0.53333333333333333,12.7,10,0.53333333333333333,1.3,null,null,null,"Jul",0.9,12.5,0.9,1.3,null,"Maximum: for 1/2 hourly and daily periods use the highest value across all operational combustion lines for the month"]
["Aug",20,0.6,192.5,10,0.56666666666666665,4.4000000000000004,null,null,null,"Aug",0.9,45,0.9,2.4]
["Sep",20,0.3,16.100000000000001,10,0.3666666666666667,5,null,null,null,"Sep",0.4,16.100000000000001,0.4,1]
["Oct",20,0.13333333333333333,21,10,0.13333333333333333,1.9,null,null,null,"Oct",0.4,21,0.4,1.9]
["Nov",20,0.19999999999999998,29,10,0.19999999999999998,1.4,null,null,null,"Nov",0.6,6.7,0.6,1.4]
["Dec",20,0.13333333333333333,10.5,5,{"$f":"AVERAGE(N18,N33,N48)","v":0.23333333333333331},5.3,null,null,null,"Dec",0.4,5.7,0.7,5.3]
[null,null,null,null,null,null,null,null,null,null,"Annual",{"$f":"AVERAGE(L7:L18)","v":0.69166666666666676},{"$f":"MAX(M7:M18)","v":91},{"$f":"AVERAGE(N7:N18)","v":0.70833333333333348},{"$f":"MAX(O7:O18)","v":5.3}]
[]
[null,null,null,null,null,null,null,null,null,{"$f":"+A6","v":2023},"mg/Nm3","Monthly 1/2 hourly mean","Monthly 1/2 hourly maximum","Monthly daily mean","Monthly daily maximum"]
[null,null,null,null,null,null,null,null,null,"A2","Jan",0.7,61.1,0.6,1.8]
[null,null,null,null,null,null,null,null,null,null,"Feb",0.6,16.3,0.6,1.2]
[null,null,null,null,null,null,null,null,null,null,"Mar",0.6,10.4,0.6,2.2999999999999998]
[null,null,null,null,null,null,null,null,null,null,"Apr",1.2,8.4,1.2,1.9]
[null,null,null,null,null,null,null,null,null,null,"May",1.2,11.1,1.2,2.2999999999999998]
[null,null,null,null,null,null,null,null,null,null,"Jun",0.7,4.3,0.7,1.3]
[null,null,null,null,null,null,null,null,null,null,"Jul",0.6,4.8,0.6,1.3]
[null,null,null,null,null,null,null,null,null,null,"Aug",0.6,6.4,0.6,0.8]
[null,null,null,null,null,null,null,null,null,null,"Sep",0.5,6.7,0.7,5]
[null,null,null,null,null,null,null,null,null,null,"Oct",0,0.9,0,0.2]
[null,null,null,null,null,null,null,null,null,null,"Nov",0,13.8,0,0.3]
[null,null,null,null,null,null,null,null,null,null,"Dec",0,2.2999999999999998,0,0.1]
[null,null,null,null,null,null,null,null,null,null,"Annual",{"$f":"AVERAGE(L22:L33)","v":0.55833333333333324},{"$f":"MAX(M22:M33)","v":61.1},{"$f":"AVERAGE(N22:N33)","v":0.56666666666666665},{"$f":"MAX(O22:O33)","v":5}]
[]
[null,null,null,null,null,null,null,null,null,{"$f":"+A6","v":2023},"mg/Nm3","Monthly 1/2 hourly mean","Monthly 1/2 hourly maximum","Monthly daily mean","Monthly daily maximum"]
[null,null,null,null,null,null,null,null,null,"A3","Jan",0,0.2,0,0]
[null,null,null,null,null,null,null,null,null,null,"Feb",0.6,333.2,0.6,9.1]
[null,null,null,null,null,null,null,null,null,null,"Mar",0,1.6,0,0.1]
[null,null,null,null,null,null,null,null,null,null,"Apr",0,1,0,0.4]
[null,null,null,null,null,null,null,null,null,null,"May",0.1,5.0999999999999996,0,0.4]
[null,null,null,null,null,null,null,null,null,null,"Jun",0.2,37.6,0.3,7.2]
[null,null,null,null,null,null,null,null,null,null,"Jul",0.1,12.7,0.1,0.5]
[null,null,null,null,null,null,null,null,null,null,"Aug",0.3,192.5,0.2,4.4000000000000004]
[null,null,null,null,null,null,null,null,null,null,"Sep",0,0.8,0,0.1]
[null,null,null,null,null,null,null,null,null,null,"Oct",0,6.9,0,0.2]
[null,null,null,null,null,null,null,null,null,null,"Nov",0,29,0,0.6]
["Comments :",null,null,null,null,null,null,null,null,null,"Dec",0,10.5,0,0.2]
["TOC daily average emission limit was changed from 10 mg/m3 to 5 mg/Nm3 on the 3rd of December at 00:00 for all lines.\n\nLine 1 had 1 instance of a TOC daily average exceedance. \n\nLine 3 had 1 instance of a TOC daily average exceedance.",null,null,null,null,null,null,null,null,null,"Annual",{"$f":"AVERAGE(L37:L48)","v":0.10833333333333332},{"$f":"MAX(M37:M48)","v":333.2},{"$f":"AVERAGE(N37:N48)","v":9.9999999999999992E-2},{"$f":"MAX(O37:O48)","v":9.1}]
[]
[null,null,null,null,null,null,null,null,null,{"$f":"+A6","v":2023},"mg/Nm3","Monthly 1/2 hourly mean","Monthly 1/2 hourly maximum","Monthly daily mean","Monthly daily maximum"]
[null,null,null,null,null,null,null,null,null,"A4","Jan"]
[null,null,null,null,null,null,null,null,null,null,"Feb"]
[null,null,null,null,null,null,null,null,null,null,"Mar"]
[null,null,null,null,null,null,null,null,null,null,"Apr"]
[null,null,null,null,null,null,null,null,null,null,"May"]
[null,null,null,null,null,null,null,null,null,null,"Jun"]
[null,null,null,null,null,null,null,null,null,null,"Jul"]
[null,null,null,null,null,null,null,null,null,null,"Aug"]
[null,null,null,null,null,null,null,null,null,null,"Sep"]
[null,null,null,null,null,null,null,null,null,null,"Oct"]
[null,null,null,null,null,null,null,null,null,null,"Nov"]
[null,null,null,null,null,null,null,null,null,null,"Dec"]
[null,null,null,null,null,null,null,null,null,null,"Annual",{"$f":"AVERAGE(L52:L63)","v":{"$error":"#DIV/0!"}},{"$f":"MAX(M52:M63)","v":0},{"$f":"AVERAGE(N52:N63)","v":{"$error":"#DIV/0!"}},{"$f":"MAX(O52:O63)","v":0}]
[]
[null,null,null,null,null,null,null,null,null,{"$f":"+A6","v":2023},"mg/Nm3","Monthly 1/2 hourly mean","Monthly 1/2 hourly maximum","Monthly daily mean","Monthly daily maximum"]
[null,null,null,null,null,null,null,null,null,"A5","Jan"]
[null,null,null,null,null,null,null,null,null,null,"Feb"]
[null,null,null,null,null,null,null,null,null,null,"Mar"]
[null,null,null,null,null,null,null,null,null,null,"Apr"]
[null,null,null,null,null,null,null,null,null,null,"May"]
[null,null,null,null,null,null,null,null,null,null,"Jun"]
[null,null,null,null,null,null,null,null,null,null,"Jul"]
[null,null,null,null,null,null,null,null,null,null,"Aug"]
[null,null,null,null,null,null,null,null,null,null,"Sep"]
[null,null,null,null,null,null,null,null,null,null,"Oct"]
[null,null,null,null,null,null,null,null,null,null,"Nov"]
[null,null,null,null,null,null,null,null,null,null,"Dec"]
[null,null,null,null,null,null,null,null,null,null,"Annual",{"$f":"AVERAGE(L67:L78)","v":{"$error":"#DIV/0!"}},{"$f":"MAX(M67:M78)","v":0},{"$f":"AVERAGE(N67:N78)","v":{"$error":"#DIV/0!"}},{"$f":"MAX(O67:O78)","v":0}]

{"sheet":"Particulates","index":19,"n_rows":79,"n_cols":17,"rows_kept":79,"cut":false,"hidden":false,"merged":[[3,16,7,18],[9,16,11,18],[12,16,15,18],[66,9,78,9],[4,1,4,3],[4,4,4,6],[4,9,4,14],[6,9,18,9],[21,9,33,9],[36,9,48,9],[47,0,47,6],[48,0,51,6],[51,9,63,9]]}
[{"$f":"+'Cover Page'!$B$29","v":"Annual Performance Report 2023"},null,null,null,{"$f":"+'Cover Page'!$B$33","v":"MVV Environment Baldovie Ltd"}]
[]
["Monitoring of Particulate matter emissions",null,null,"Whole Installation",null,null,null,null,null,{"$f":"+A3","v":"Monitoring of Particulate matter emissions"},null,null,null,"Per Combustion Line",null,null,"Notes:"]
[null,null,null,null,null,null,null,null,null,null,null,null,null,null,null,null,"User to add logic to complete Whole installation, Table A5:G18. From the data in Per Combustion Line, Table J6:O79, subject to No. of lines installed"]
["mg/Nm3","1/2 Hourly Reference Periods",null,null,"Daily Reference Periods"]
[{"$f":"+'Cover Page'!C39","v":2023},"1/2 hourly PM ELV","Monthly 1/2 hourly mean","Highest 1/2 hourly maximum","Daily PM ELV","Monthly daily mean","Highest daily maximum",null,null,{"$f":"+A6","v":2023},"mg/Nm3","Monthly 1/2 hourly mean","Monthly 1/2 hourly maximum","Monthly daily mean","Monthly daily maximum"]
["Jan",30,{"$f":"AVERAGE(L7,L22,L37)","v":0.46666666666666673},{"$f":"MAX(M7,M22,M37)","v":18.2},10,{"$f":"AVERAGE(N7,N22,N37)","v":0.46666666666666673},{"$f":"MAX(O7,O22,O37)","v":2.6},null,null,"A1","Jan",0.5,18.2,0.5,2.6]
["Feb",30,{"$f":"AVERAGE(L8,L23,L38)","v":0.46666666666666673},{"$f":"MAX(M8,M23,M38)","v":6.4},10,{"$f":"AVERAGE(N8,N23,N38)","v":0.46666666666666673},1.5,null,null,null,"Feb",0.4,6.4,0.4,1.1000000000000001]
["Mar",30,0.3666666666666667,8.9,10,0.40000000000000008,3.4,null,null,null,"Mar",0.4,7.2,0.5,3.4,null,"Whole Installation table A5:G18:"]
["Apr",30,0.23333333333333331,6.7,10,0.23333333333333331,0.8,null,null,null,"Apr",0.3,6.7,0.3,0.8,null,"Mean: for 1/2 hourly and daily periods calculate mean of values across all operational combustion lines for the month"]
["May",30,0.23333333333333331,1.2,10,0.19999999999999998,0.6,null,null,null,"May",0.2,0.6,0.2,0.3]
["Jun",30,0.33333333333333331,25.9,10,0.26666666666666666,3.4,null,null,null,"Jun",0.4,3.5,0.3,0.6]
["Jul",30,0.26666666666666666,13.3,10,0.23333333333333336,1.6,null,null,null,"Jul",0.4,13.3,0.4,1.6,null,"Maximum: for 1/2 hourly and daily periods use the highest value across all operational combustion lines for the month"]
["Aug",30,0.26666666666666666,12.8,10,0.23333333333333331,1.3,null,null,null,"Aug",0.4,6.1,0.3,0.8]
["Sep",30,0.26666666666666666,2.1,10,0.23333333333333331,1.1000000000000001,null,null,null,"Sep",0.3,2.1,0.3,0.6]
["Oct",30,0.26666666666666666,5.2,10,0.23333333333333331,2.2000000000000002,null,null,null,"Oct",0.4,2,0.3,0.9]
["Nov",30,0.26666666666666666,2.9,10,0.23333333333333331,0.6,null,null,null,"Nov",0.3,2.9,0.3,0.6]
["Dec",30,0.3,6.6,5,{"$f":"AVERAGE(N18,N33,N48)","v":0.23333333333333331},1.1000000000000001,null,null,null,"Dec",0.3,6.6,0.2,1.1000000000000001]
[null,null,null,null,null,null,null,null,null,null,"Annual",{"$f":"AVERAGE(L7:L18)","v":0.35833333333333334},{"$f":"MAX(M7:M18)","v":18.2},{"$f":"AVERAGE(N7:N18)","v":0.33333333333333326},{"$f":"MAX(O7:O18)","v":3.4}]
[]
[null,null,null,null,null,null,null,null,null,{"$f":"+A6","v":2023},"mg/Nm3","Monthly 1/2 hourly mean","Monthly 1/2 hourly maximum","Monthly daily mean","Monthly daily maximum"]
[null,null,null,null,null,null,null,null,null,"A2","Jan",0.8,5.8,0.8,2.1]
[null,null,null,null,null,null,null,null,null,null,"Feb",0.9,2.9,0.9,1.5]
[null,null,null,null,null,null,null,null,null,null,"Mar",0.6,8.9,0.6,1.5]
[null,null,null,null,null,null,null,null,null,null,"Apr",0.3,1.1000000000000001,0.3,0.6]
[null,null,null,null,null,null,null,null,null,null,"May",0.3,1,0.3,0.6]
[null,null,null,null,null,null,null,null,null,null,"Jun",0.3,0.7,0.3,0.4]
[null,null,null,null,null,null,null,null,null,null,"Jul",0.3,0.9,0.2,0.4]
[null,null,null,null,null,null,null,null,null,null,"Aug",0.2,0.7,0.2,0.3]
[null,null,null,null,null,null,null,null,null,null,"Sep",0.3,2.1,0.3,1.1000000000000001]
[null,null,null,null,null,null,null,null,null,null,"Oct",0.2,5.2,0.2,2.2000000000000002]
[null,null,null,null,null,null,null,null,null,null,"Nov",0.2,0.4,0.1,0.2]
[null,null,null,null,null,null,null,null,null,null,"Dec",0.2,0.5,0.2,0.3]
[null,null,null,null,null,null,null,null,null,null,"Annual",{"$f":"AVERAGE(L22:L33)","v":0.3833333333333333},{"$f":"MAX(M22:M33)","v":8.9},{"$f":"AVERAGE(N22:N33)","v":0.36666666666666664},{"$f":"MAX(O22:O33)","v":2.2000000000000002}]
[]
[null,null,null,null,null,null,null,null,null,{"$f":"+A6","v":2023},"mg/Nm3","Monthly 1/2 hourly mean","Monthly 1/2 hourly maximum","Monthly daily mean","Monthly daily maximum"]
[null,null,null,null,null,null,null,null,null,"A3","Jan",0.1,1.2,0.1,0.3]
[null,null,null,null,null,null,null,null,null,null,"Feb",0.1,1.6,0.1,0.3]
[null,null,null,null,null,null,null,null,null,null,"Mar",0.1,2,0.1,0.3]
[null,null,null,null,null,null,null,null,null,null,"Apr",0.1,3.2,0.1,0.4]
[null,null,null,null,null,null,null,null,null,null,"May",0.2,1.2,0.1,0.4]
[null,null,null,null,null,null,null,null,null,null,"Jun",0.3,25.9,0.2,3.4]
[null,null,null,null,null,null,null,null,null,null,"Jul",0.1,0.5,0.1,0.1]
[null,null,null,null,null,null,null,null,null,null,"Aug",0.2,12.8,0.2,1.3]
[null,null,null,null,null,null,null,null,null,null,"Sep",0.2,1,0.1,0.4]
[null,null,null,null,null,null,null,null,null,null,"Oct",0.2,3.7,0.2,0.9]
[null,null,null,null,null,null,null,null,null,null,"Nov",0.3,0.8,0.3,0.5]
["Comments :",null,null,null,null,null,null,null,null,null,"Dec",0.4,2,0.3,0.7]
[" Particulate matter daily average emission limit was changed from 10 mg/m3 to 5 mg/Nm3 on the 3rd of December at 00:00 for all lines.",null,null,null,null,null,null,null,null,null,"Annual",{"$f":"AVERAGE(L37:L48)","v":0.19166666666666668},{"$f":"MAX(M37:M48)","v":25.9},{"$f":"AVERAGE(N37:N48)","v":0.15833333333333335},{"$f":"MAX(O37:O48)","v":3.4}]
[]
[null,null,null,null,null,null,null,null,null,{"$f":"+A6","v":2023},"mg/Nm3","Monthly 1/2 hourly mean","Monthly 1/2 hourly maximum","Monthly daily mean","Monthly daily maximum"]
[null,null,null,null,null,null,null,null,null,"A4","Jan"]
[null,null,null,null,null,null,null,null,null,null,"Feb"]
[null,null,null,null,null,null,null,null,null,null,"Mar"]
[null,null,null,null,null,null,null,null,null,null,"Apr"]
[null,null,null,null,null,null,null,null,null,null,"May"]
[null,null,null,null,null,null,null,null,null,null,"Jun"]
[null,null,null,null,null,null,null,null,null,null,"Jul"]
[null,null,null,null,null,null,null,null,null,null,"Aug"]
[null,null,null,null,null,null,null,null,null,null,"Sep"]
[null,null,null,null,null,null,null,null,null,null,"Oct"]
[null,null,null,null,null,null,null,null,null,null,"Nov"]
[null,null,null,null,null,null,null,null,null,null,"Dec"]
[null,null,null,null,null,null,null,null,null,null,"Annual",{"$f":"AVERAGE(L52:L63)","v":{"$error":"#DIV/0!"}},{"$f":"MAX(M52:M63)","v":0},{"$f":"AVERAGE(N52:N63)","v":{"$error":"#DIV/0!"}},{"$f":"MAX(O52:O63)","v":0}]
[]
[null,null,null,null,null,null,null,null,null,{"$f":"+A6","v":2023},"mg/Nm3","Monthly 1/2 hourly mean","Monthly 1/2 hourly maximum","Monthly daily mean","Monthly daily maximum"]
[null,null,null,null,null,null,null,null,null,"A5","Jan"]
[null,null,null,null,null,null,null,null,null,null,"Feb"]
[null,null,null,null,null,null,null,null,null,null,"Mar"]
[null,null,null,null,null,null,null,null,null,null,"Apr"]
[null,null,null,null,null,null,null,null,null,null,"May"]
[null,null,null,null,null,null,null,null,null,null,"Jun"]
[null,null,null,null,null,null,null,null,null,null,"Jul"]
[null,null,null,null,null,null,null,null,null,null,"Aug"]
[null,null,null,null,null,null,null,null,null,null,"Sep"]
[null,null,null,null,null,null,null,null,null,null,"Oct"]
[null,null,null,null,null,null,null,null,null,null,"Nov"]
[null,null,null,null,null,null,null,null,null,null,"Dec"]
[null,null,null,null,null,null,null,null,null,null,"Annual",{"$f":"AVERAGE(L67:L78)","v":{"$error":"#DIV/0!"}},{"$f":"MAX(M67:M78)","v":0},{"$f":"AVERAGE(N67:N78)","v":{"$error":"#DIV/0!"}},{"$f":"MAX(O67:O78)","v":0}]

{"sheet":"CO 95% 10 min","index":20,"n_rows":79,"n_cols":19,"rows_kept":79,"cut":false,"hidden":false,"merged":[[3,18,7,20],[9,18,11,20],[12,18,15,20],[66,10,78,10],[4,1,4,4],[4,5,4,7],[4,10,4,16],[6,10,18,10],[21,10,33,10],[36,10,48,10],[47,0,47,7],[48,0,51,7],[51,10,63,10]]}
[{"$f":"+'Cover Page'!$B$29","v":"Annual Performance Report 2023"},null,null,null,{"$f":"+'Cover Page'!$B$33","v":"MVV Environment Baldovie Ltd"}]
[]
["Monitoring of Carbon Monoxide (10-minute avg)",null,null,null,"Whole Installation",null,null,"See  Notes in Cell S3",null,{"$f":"+A3","v":"Monitoring of Carbon Monoxide (10-minute avg)"},null,null,null,null,"Per Combustion Line",null,"Notes:",null,"Notes:"]
[null,null,null,null,null,null,null,null,null,null,null,null,null,null,null,null,null,null,"User to add logic to complete Whole installation, Table A5:H18. From the data in Per Combustion Line, Table K6:Q79, subject to No. of lines installed"]
["mg/Nm3","10-minute Reference Periods",null,null,null,"Daily Reference Periods"]
[{"$f":"+'Cover Page'!C39","v":2023},"95%ile 10-min avg CO ELV","95%ile 10-min avg maximum","Monthly CO 10-min avg mean","10-min avg maximum","Daily CO ELV","Monthly daily mean","Highest daily maximum",null,null,{"$f":"+A6","v":2023},"mg/Nm3","95%ile 10-min avg maximum","Monthly CO 10-min avg mean","10-min avg maximum","Monthly daily mean","Monthly daily maximum"]
["Jan",150,{"$f":"MAX(M7,M22,M37)","v":106.5},{"$f":"AVERAGE(N7,N22,N37)","v":14.633333333333335},{"$f":"MAX(O7,O22,O37)","v":425.7},50,{"$f":"AVERAGE(P7,P22,P37)","v":14.833333333333334},{"$f":"MAX(Q7,Q22,Q37)","v":38.5},null,null,"A1","Jan",106.5,19.3,390.7,20,38.5]
["Feb",{"$f":"+B7","v":150},{"$f":"MAX(M8,M23,M38)","v":368.6},{"$f":"AVERAGE(N8,N23,N38)","v":17.633333333333329},{"$f":"MAX(O8,O23,O38)","v":4158.7},{"$f":"+F7","v":50},17.7,87.7,null,null,null,"Feb",124.4,21.4,468.4,21.4,33.5]
["Mar",{"$f":"+B8","v":150},129.1,19.466666666666669,572.5,{"$f":"+F8","v":50},20.733333333333334,60.4,null,null,null,"Mar",129.1,24.3,313.8,27.1,60.4,null,"Whole Installation table A5:H18:"]
["Apr",150,144.4,24.5,552.6,50,24.866666666666664,56.3,null,null,null,"Apr",144.4,31.1,339.2,32,56.3,null,"Mean: for 10-min and daily periods use average of all operational combustion lines."]
["May",150,413.6,23.899999999999995,1389.3,50,23.466666666666669,93.6,null,null,null,"May",123.3,24.4,304.5,24.3,39.799999999999997]
["Jun",150,3161.5,29.366666666666664,9298.2000000000007,50,33.966666666666669,920.3,null,null,null,"Jun",119.1,22.9,323.10000000000002,23,34.9]
["Jul",150,129.9,22.133333333333329,1092.7,50,22.599999999999998,73.599999999999994,null,null,null,"Jul",123,27.2,394.5,27.2,35.4,null,"Maximum: for 10-min and daily periods use the highest of all operational combustion lines in any month."]
["Aug",150,146.19999999999999,26.600000000000005,27956.2,50,26.633333333333336,237.6,null,null,null,"Aug",146.19999999999999,29.5,393.5,29.6,43.8]
["Sep",150,129.80000000000001,22.066666666666666,1040.5,50,25.599999999999998,318.7,null,null,null,"Sep",122.9,23.7,531.4,23.8,39.6]
["Oct",150,146.5,12.9,443.5,50,13.4,59.9,null,null,null,"Oct",146.5,15.4,443.5,17,59.9]
["Nov",150,129.19999999999999,12.733333333333334,1066.2,50,13.1,60.9,null,null,null,"Nov",129.19999999999999,15,538.9,16,60.9]
["Dec",150,112.5,14.366666666666667,745.2,"50/30",14.466666666666667,33.299999999999997,null,null,null,"Dec",112.5,17.899999999999999,286.89999999999998,18.100000000000001,33.299999999999997]
[null,null,null,null,null,null,null,null,null,null,null,"Annual",{"$f":"AVERAGE(M7:M18)","v":127.25833333333334},{"$f":"AVERAGE(N7:N18)","v":22.674999999999997},{"$f":"MAX(O7:O18)","v":538.9},{"$f":"AVERAGE(P7:P18)","v":23.291666666666668},{"$f":"MAX(Q7:Q18)","v":60.9}]
[]
[null,null,null,null,null,null,null,null,null,null,{"$f":"+A6","v":2023},"mg/Nm3","95%ile 10-min avg maximum","Monthly CO 10-min avg mean","10-min avg maximum","Monthly daily mean","Monthly daily maximum"]
[null,null,null,null,null,null,null,null,null,null,"A2","Jan",82.2,15.9,425.7,15.9,23]
[null,null,null,null,null,null,null,null,null,null,null,"Feb",139.30000000000001,18.2,797.7,17.899999999999999,34.200000000000003]
[null,null,null,null,null,null,null,null,null,null,null,"Mar",115.1,23.3,572.5,24.3,55.4]
[null,null,null,null,null,null,null,null,null,null,null,"Apr",124.2,30.3,552.6,30.6,48.7]
[null,null,null,null,null,null,null,null,null,null,null,"May",130.69999999999999,27.9,416.1,27.9,45.6]
[null,null,null,null,null,null,null,null,null,null,null,"Jun",122.4,27.8,324.2,28.2,40.700000000000003]
[null,null,null,null,null,null,null,null,null,null,null,"Jul",129.9,30.4,382.2,31.8,73.599999999999994]
[null,null,null,null,null,null,null,null,null,null,null,"Aug",140,33.200000000000003,344.1,32.9,45.2]
[null,null,null,null,null,null,null,null,null,null,null,"Sep",129.80000000000001,31.3,1040.5,41.8,318.7]
[null,null,null,null,null,null,null,null,null,null,null,"Oct",47.9,8.9,317.10000000000002,8.8000000000000007,13.8]
[null,null,null,null,null,null,null,null,null,null,null,"Nov",70.900000000000006,11,508.2,11.1,21]
[null,null,null,null,null,null,null,null,null,null,null,"Dec",64.599999999999994,10.8,277.60000000000002,10.9,16.899999999999999]
[null,null,null,null,null,null,null,null,null,null,null,"Annual",{"$f":"AVERAGE(M22:M33)","v":108.08333333333333},{"$f":"AVERAGE(N22:N33)","v":22.416666666666671},{"$f":"MAX(O22:O33)","v":1040.5},{"$f":"AVERAGE(P22:P33)","v":23.508333333333336},{"$f":"MAX(Q22:Q33)","v":318.7}]
[]
[null,null,null,null,null,null,null,null,null,null,{"$f":"+A6","v":2023},"mg/Nm3","95%ile 10-min avg maximum","Monthly CO 10-min avg mean","10-min avg maximum","Monthly daily mean","Monthly daily maximum"]
[null,null,null,null,null,null,null,null,null,null,"A3","Jan",22.5,8.6999999999999993,126.2,8.6,11.6]
[null,null,null,null,null,null,null,null,null,null,null,"Feb",368.6,13.3,4158.7,13.8,87.7]
[null,null,null,null,null,null,null,null,null,null,null,"Mar",32.6,10.8,92.2,10.8,14.3]
[null,null,null,null,null,null,null,null,null,null,null,"Apr",44.3,12.1,210.5,12,21.7]
[null,null,null,null,null,null,null,null,null,null,null,"May",413.6,19.399999999999999,1389.3,18.2,93.6]
[null,null,null,null,null,null,null,null,null,null,null,"Jun",3161.5,37.4,9298.2000000000007,50.7,920.3]
[null,null,null,null,null,null,null,null,null,null,null,"Jul",24.4,8.8000000000000007,1092.7,8.8000000000000007,17.8]
[null,null,null,null,null,null,null,null,null,null,null,"Aug",45.5,17.100000000000001,27956.2,17.399999999999999,237.6]
[null,null,null,null,null,null,null,null,null,null,null,"Sep",35.799999999999997,11.2,160.5,11.2,16.3]
[null,null,null,null,null,null,null,null,null,null,null,"Oct",76.8,14.4,259.7,14.4,30.8]
[null,null,null,null,null,null,null,null,null,null,null,"Nov",47.4,12.2,1066.2,12.2,20.7]
["Comments :",null,null,null,null,null,null,null,null,null,null,"Dec",47.2,14.4,745.2,14.4,21.6]
["Environment Agency explanatory note: The 10-minute average ELV is based on the “95th percentile”. In this case this means that 95% of the 10 minute averages in the relevant 24-hour period (i.e. 137) must be below 150 mg/Nm3, and 5% (i.e. 7) are allowed to be any value above 150 mg/Nm3. Whilst we expect operators to minimise CO emissions at all times, it is perfectly acceptable for the value of the maximum 10-minute average to be above 150 mg/Nm3, provided the 95th percentile ELV has been met for that period. \n\nCO daily average emission limit was changed from 50 mg/m3 to 30 mg/Nm3 on the 3rd of December at 00:00 for Line 3 only.\n\nCompliance is met against the 97th %ile of the daily average over the calendar year for all three lines.\n\nLine 1 had 1 instance of an exceedance against the CO 95th %ile 10-minute average over 24 hours.\n\nLine 3 had 4 instances of an exceedance against the CO 95th %ile 10-minute average over 24 hours.",null,null,null,null,null,null,null,null,null,null,"Annual",{"$f":"AVERAGE(M37:M48)","v":360.01666666666665},{"$f":"AVERAGE(N37:N48)","v":14.983333333333333},{"$f":"MAX(O37:O48)","v":27956.2},{"$f":"AVERAGE(P37:P48)","v":16.041666666666668},{"$f":"MAX(Q37:Q48)","v":920.3}]
[]
[null,null,null,null,null,null,null,null,null,null,{"$f":"+A6","v":2023},"mg/Nm3","95%ile 10-min avg maximum","Monthly CO 10-min avg mean","10-min avg maximum","Monthly daily mean","Monthly daily maximum"]
[null,null,null,null,null,null,null,null,null,null,"A4","Jan"]
[null,null,null,null,null,null,null,null,null,null,null,"Feb"]
[null,null,null,null,null,null,null,null,null,null,null,"Mar"]
[null,null,null,null,null,null,null,null,null,null,null,"Apr"]
[null,null,null,null,null,null,null,null,null,null,null,"May"]
[null,null,null,null,null,null,null,null,null,null,null,"Jun"]
[null,null,null,null,null,null,null,null,null,null,null,"Jul"]
[null,null,null,null,null,null,null,null,null,null,null,"Aug"]
[null,null,null,null,null,null,null,null,null,null,null,"Sep"]
[null,null,null,null,null,null,null,null,null,null,null,"Oct"]
[null,null,null,null,null,null,null,null,null,null,null,"Nov"]
[null,null,null,null,null,null,null,null,null,null,null,"Dec"]
[null,null,null,null,null,null,null,null,null,null,null,"Annual",{"$f":"AVERAGE(M52:M63)","v":{"$error":"#DIV/0!"}},null,{"$f":"MAX(O52:O63)","v":0},{"$f":"AVERAGE(P52:P63)","v":{"$error":"#DIV/0!"}},{"$f":"MAX(Q52:Q63)","v":0}]
[]
[null,null,null,null,null,null,null,null,null,null,{"$f":"+A6","v":2023},"mg/Nm3","95%ile 10-min avg maximum","Monthly CO 10-min avg mean","10-min avg maximum","Monthly daily mean","Monthly daily maximum"]
[null,null,null,null,null,null,null,null,null,null,"A5","Jan"]
[null,null,null,null,null,null,null,null,null,null,null,"Feb"]
[null,null,null,null,null,null,null,null,null,null,null,"Mar"]
[null,null,null,null,null,null,null,null,null,null,null,"Apr"]
[null,null,null,null,null,null,null,null,null,null,null,"May"]
[null,null,null,null,null,null,null,null,null,null,null,"Jun"]
[null,null,null,null,null,null,null,null,null,null,null,"Jul"]
[null,null,null,null,null,null,null,null,null,null,null,"Aug"]
[null,null,null,null,null,null,null,null,null,null,null,"Sep"]
[null,null,null,null,null,null,null,null,null,null,null,"Oct"]
[null,null,null,null,null,null,null,null,null,null,null,"Nov"]
[null,null,null,null,null,null,null,null,null,null,null,"Dec"]
[null,null,null,null,null,null,null,null,null,null,null,"Annual",{"$f":"AVERAGE(M67:M78)","v":{"$error":"#DIV/0!"}},null,{"$f":"MAX(O67:O78)","v":0},{"$f":"AVERAGE(P67:P78)","v":{"$error":"#DIV/0!"}},{"$f":"MAX(Q67:Q78)","v":0}]

{"sheet":"NH3","index":21,"n_rows":79,"n_cols":17,"rows_kept":79,"cut":false,"hidden":false,"merged":[[3,16,7,18],[9,16,11,18],[12,16,15,18],[66,9,78,9],[4,1,4,3],[4,4,4,6],[4,9,4,14],[6,9,18,9],[21,9,33,9],[36,9,48,9],[47,0,47,6],[48,0,51,6],[51,9,63,9]]}
[{"$f":"+'Cover Page'!$B$29","v":"Annual Performance Report 2023"},null,null,null,{"$f":"+'Cover Page'!$B$33","v":"MVV Environment Baldovie Ltd"}]
[]
["Monitoring of Ammnonia emissions ",null,null,"Whole Installation",null,null,null,null,null,{"$f":"+A3","v":"Monitoring of Ammnonia emissions "},null,null,null,"Per Combustion Line",null,null,"Notes:"]
[null,null,null,null,null,null,null,null,null,null,null,null,null,null,null,null,"User to add logic to complete Whole installation, Table A5:G18. From the data in Per Combustion Line, Table J6:O79, subject to No. of lines installed"]
["mg/Nm3","1/2 Hourly Reference Periods",null,null,"Daily Reference Periods"]
[{"$f":"+'Cover Page'!C39","v":2023},"1/2 hourly NH3 ELV","Monthly 1/2 hourly mean","Highest 1/2 hourly maximum","Daily NH3 ELV","Monthly daily mean","Highest daily maximum",null,null,{"$f":"+A6","v":2023},"mg/Nm3","Monthly 1/2 hourly mean","Monthly 1/2 hourly maximum","Monthly daily mean","Monthly daily maximum"]
["Jan","-",{"$f":"AVERAGE(L7,L22,L37)","v":0.56666666666666665},{"$f":"MAX(M7,M22,M37)","v":22.4},10,{"$f":"AVERAGE(N7,N22,N37)","v":0.56666666666666665},{"$f":"MAX(O7,O22,O37)","v":4.2},null,null,"A1","Jan",0.2,12,0.3,4.2]
["Feb",{"$f":"+B7","v":"-"},{"$f":"AVERAGE(L8,L23,L38)","v":0.6},{"$f":"MAX(M8,M23,M38)","v":22.8},10,{"$f":"AVERAGE(N8,N23,N38)","v":0.73333333333333339},10.4,null,null,null,"Feb",0.3,14.6,0.4,1.5]
["Mar",{"$f":"+B8","v":"-"},0.56666666666666665,22.6,10,0.6,4.0999999999999996,null,null,null,"Mar",0.4,8.1,0.6,4.0999999999999996,null,"Whole Installation table A5:G18:"]
["Apr","-",0.56666666666666676,9.9,10,0.56666666666666676,2.7,null,null,null,"Apr",0.4,6.3,0.4,2.7,null,"Mean: for 1/2 hourly and daily periods calculate mean of values across all operational combustion lines for the month"]
["May","-",0.73333333333333339,6.9,10,0.69999999999999984,2.9,null,null,null,"May",0.2,1.3,0.2,0.6]
["Jun","-",1.1666666666666667,20.9,10,1.1333333333333335,6.1,null,null,null,"Jun",0.5,3.1,0.4,1.5]
["Jul","-",1.1333333333333333,16.2,10,1.0666666666666667,3.5,null,null,null,"Jul",0.7,4.5,0.7,1.4,null,"Maximum: for 1/2 hourly and daily periods use the highest value across all operational combustion lines for the month"]
["Aug","-",1.5333333333333332,26.8,10,1.5,5.9,null,null,null,"Aug",0.9,26.8,0.9,2.9]
["Sep","-",0.93333333333333324,13.4,10,0.93333333333333324,4.5,null,null,null,"Sep",0.8,13.4,0.8,1.9]
["Oct","-",0.56666666666666676,16,10,0.56666666666666676,4.9000000000000004,null,null,null,"Oct",0.5,16,0.5,2.8]
["Nov","-",0.40000000000000008,14.4,10,0.40000000000000008,2.7,null,null,null,"Nov",0.2,9.6999999999999993,0.3,2.7]
["Dec","-",0.6,6.8,10,0.56666666666666665,1.7,null,null,null,"Dec",0.4,6.8,0.4,1.2]
[null,null,null,null,null,null,null,null,null,null,"Annual",{"$f":"AVERAGE(L7:L18)","v":0.45833333333333343},{"$f":"MAX(M7:M18)","v":26.8},{"$f":"AVERAGE(N7:N18)","v":0.4916666666666667},{"$f":"MAX(O7:O18)","v":4.2}]
[]
[null,null,null,null,null,null,null,null,null,{"$f":"+A6","v":2023},"mg/Nm3","Monthly 1/2 hourly mean","Monthly 1/2 hourly maximum","Monthly daily mean","Monthly daily maximum"]
[null,null,null,null,null,null,null,null,null,"A2","Jan",1,22.4,0.9,1.9]
[null,null,null,null,null,null,null,null,null,null,"Feb",1,22.8,1.3,10.4]
[null,null,null,null,null,null,null,null,null,null,"Mar",0.6,22.6,0.6,3]
[null,null,null,null,null,null,null,null,null,null,"Apr",0.7,9.9,0.7,2.1]
[null,null,null,null,null,null,null,null,null,null,"May",1.2,6.9,1.2,2.9]
[null,null,null,null,null,null,null,null,null,null,"Jun",0.8,11.9,0.8,2.2000000000000002]
[null,null,null,null,null,null,null,null,null,null,"Jul",2.1,16.2,2,3.5]
[null,null,null,null,null,null,null,null,null,null,"Aug",2.7,18.3,2.7,5.9]
[null,null,null,null,null,null,null,null,null,null,"Sep",1.3,13,1.3,4.5]
[null,null,null,null,null,null,null,null,null,null,"Oct",0.1,3.2,0.1,1.9]
[null,null,null,null,null,null,null,null,null,null,"Nov",0.2,14.4,0.1,0.8]
[null,null,null,null,null,null,null,null,null,null,"Dec",0.2,4.8,0.1,0.6]
[null,null,null,null,null,null,null,null,null,null,"Annual",{"$f":"AVERAGE(L22:L33)","v":0.9916666666666667},{"$f":"MAX(M22:M33)","v":22.8},{"$f":"AVERAGE(N22:N33)","v":0.98333333333333328},{"$f":"MAX(O22:O33)","v":10.4}]
[]
[null,null,null,null,null,null,null,null,null,{"$f":"+A6","v":2023},"mg/Nm3","Monthly 1/2 hourly mean","Monthly 1/2 hourly maximum","Monthly daily mean","Monthly daily maximum"]
[null,null,null,null,null,null,null,null,null,"A3","Jan",0.5,3.4,0.5,0.9]
[null,null,null,null,null,null,null,null,null,null,"Feb",0.5,3,0.5,1.1000000000000001]
[null,null,null,null,null,null,null,null,null,null,"Mar",0.7,3.3,0.6,1.2]
[null,null,null,null,null,null,null,null,null,null,"Apr",0.6,4.5999999999999996,0.6,1]
[null,null,null,null,null,null,null,null,null,null,"May",0.8,5.5,0.7,1.9]
[null,null,null,null,null,null,null,null,null,null,"Jun",2.2000000000000002,20.9,2.2000000000000002,6.1]
[null,null,null,null,null,null,null,null,null,null,"Jul",0.6,5.3,0.5,2]
[null,null,null,null,null,null,null,null,null,null,"Aug",1,6.1,0.9,2.6]
[null,null,null,null,null,null,null,null,null,null,"Sep",0.7,2.4,0.7,1.1000000000000001]
[null,null,null,null,null,null,null,null,null,null,"Oct",1.1000000000000001,12.7,1.1000000000000001,4.9000000000000004]
[null,null,null,null,null,null,null,null,null,null,"Nov",0.8,2.4,0.8,1.3]
["Comments :",null,null,null,null,null,null,null,null,null,"Dec",1.2,4.4000000000000004,1.2,1.7]
["Line 2 had 1 instance of an NH3 daily average exceedance. ",null,null,null,null,null,null,null,null,null,"Annual",{"$f":"AVERAGE(L37:L48)","v":0.89166666666666661},{"$f":"MAX(M37:M48)","v":20.9},{"$f":"AVERAGE(N37:N48)","v":0.85833333333333339},{"$f":"MAX(O37:O48)","v":6.1}]
[]
[null,null,null,null,null,null,null,null,null,{"$f":"+A6","v":2023},"mg/Nm3","Monthly 1/2 hourly mean","Monthly 1/2 hourly maximum","Monthly daily mean","Monthly daily maximum"]
[null,null,null,null,null,null,null,null,null,"A4","Jan"]
[null,null,null,null,null,null,null,null,null,null,"Feb"]
[null,null,null,null,null,null,null,null,null,null,"Mar"]
[null,null,null,null,null,null,null,null,null,null,"Apr"]
[null,null,null,null,null,null,null,null,null,null,"May"]
[null,null,null,null,null,null,null,null,null,null,"Jun"]
[null,null,null,null,null,null,null,null,null,null,"Jul"]
[null,null,null,null,null,null,null,null,null,null,"Aug"]
[null,null,null,null,null,null,null,null,null,null,"Sep"]
[null,null,null,null,null,null,null,null,null,null,"Oct"]
[null,null,null,null,null,null,null,null,null,null,"Nov"]
[null,null,null,null,null,null,null,null,null,null,"Dec"]
[null,null,null,null,null,null,null,null,null,null,"Annual",{"$f":"AVERAGE(L52:L63)","v":{"$error":"#DIV/0!"}},{"$f":"MAX(M52:M63)","v":0},{"$f":"AVERAGE(N52:N63)","v":{"$error":"#DIV/0!"}},{"$f":"MAX(O52:O63)","v":0}]
[]
[null,null,null,null,null,null,null,null,null,{"$f":"+A6","v":2023},"mg/Nm3","Monthly 1/2 hourly mean","Monthly 1/2 hourly maximum","Monthly daily mean","Monthly daily maximum"]
[null,null,null,null,null,null,null,null,null,"A5","Jan"]
[null,null,null,null,null,null,null,null,null,null,"Feb"]
[null,null,null,null,null,null,null,null,null,null,"Mar"]
[null,null,null,null,null,null,null,null,null,null,"Apr"]
[null,null,null,null,null,null,null,null,null,null,"May"]
[null,null,null,null,null,null,null,null,null,null,"Jun"]
[null,null,null,null,null,null,null,null,null,null,"Jul"]
[null,null,null,null,null,null,null,null,null,null,"Aug"]
[null,null,null,null,null,null,null,null,null,null,"Sep"]
[null,null,null,null,null,null,null,null,null,null,"Oct"]
[null,null,null,null,null,null,null,null,null,null,"Nov"]
[null,null,null,null,null,null,null,null,null,null,"Dec"]
[null,null,null,null,null,null,null,null,null,null,"Annual",{"$f":"AVERAGE(L67:L78)","v":{"$error":"#DIV/0!"}},{"$f":"MAX(M67:M78)","v":0},{"$f":"AVERAGE(N67:N78)","v":{"$error":"#DIV/0!"}},{"$f":"MAX(O67:O78)","v":0}]

{"sheet":"N2O","index":22,"n_rows":79,"n_cols":17,"rows_kept":79,"cut":false,"hidden":false,"merged":[[66,9,78,9],[3,16,7,18],[4,1,4,3],[4,4,4,6],[4,9,4,14],[6,9,18,9],[9,16,11,18],[12,16,15,18],[21,9,33,9],[36,9,48,9],[47,0,47,6],[48,0,51,6],[51,9,63,9]]}
[{"$f":"+'Cover Page'!$B$29","v":"Annual Performance Report 2023"},null,null,null,{"$f":"+'Cover Page'!$B$33","v":"MVV Environment Baldovie Ltd"}]
[]
["Monitoring of Nitrous Oxide emissions ",null,null,"Whole Installation",null,null,null,null,null,{"$f":"+A3","v":"Monitoring of Nitrous Oxide emissions "},null,null,null,"Per Combustion Line",null,null,"Notes:"]
[null,null,null,null,null,null,null,null,null,null,null,null,null,null,null,null,"User to add logic to complete Whole installation, Table A5:G18. From the data in Per Combustion Line, Table J6:O79, subject to No. of lines installed"]
["mg/Nm3","1/2 Hourly Reference Periods",null,null,"Daily Reference Periods"]
[{"$f":"+'Cover Page'!C39","v":2023},"1/2 hourly N2O ELV","Monthly 1/2 hourly mean","Highest 1/2 hourly maximum","Daily N2O ELV","Monthly daily mean","Highest daily maximum",null,null,{"$f":"+A6","v":2023},"mg/Nm3","Monthly 1/2 hourly mean","Monthly 1/2 hourly maximum","Monthly daily mean","Monthly daily maximum"]
["Jan","-",{"$f":"AVERAGE(L7,L22,L37)","v":4.333333333333333},{"$f":"MAX(M7,M22,M37)","v":68},"-",{"$f":"AVERAGE(N7,N22,N37)","v":4.4000000000000004},{"$f":"MAX(O7,O22,O37)","v":11.7},null,null,"A1","Jan",2.2999999999999998,43.1,2.5,9.3000000000000007]
["Feb",{"$f":"+B7","v":"-"},{"$f":"AVERAGE(L8,L23,L38)","v":4.6333333333333329},{"$f":"MAX(M8,M23,M38)","v":92.4},"-",{"$f":"AVERAGE(N8,N23,N38)","v":4.7},11.8,null,null,null,"Feb",2.2000000000000002,49.8,2.2999999999999998,5.3]
["Mar",{"$f":"+B8","v":"-"},4.2,26.1,"-",4.5666666666666673,14,null,null,null,"Mar",2.4,26.1,2.9,8.9,null,"Whole Installation table A5:G18:"]
["Apr","-",4.0666666666666664,55.1,"-",4.166666666666667,11.6,null,null,null,"Apr",2,32.4,2.2999999999999998,10.199999999999999,null,"Mean: for 1/2 hourly and daily periods calculate mean of values across all operational combustion lines for the month"]
["May","-",4.0333333333333332,46.3,"-",3.9666666666666668,11.1,null,null,null,"May",1.5,11.6,1.5,2.4]
["Jun","-",6.5,1685,"-",6.9000000000000012,97.9,null,null,null,"Jun",1.6,10.4,1.6,2.6]
["Jul","-",4.3666666666666663,560.6,"-",4.333333333333333,20.100000000000001,null,null,null,"Jul",2.2999999999999998,19.5,2.2999999999999998,4.5999999999999996,null,"Maximum: for 1/2 hourly and daily periods use the highest value across all operational combustion lines for the month"]
["Aug","-",3.9666666666666668,18.100000000000001,"-",3.9333333333333336,10.8,null,null,null,"Aug",1.8,17.2,1.8,3.1]
["Sep","-",3.2000000000000006,14.8,"-",3.2333333333333329,9.6999999999999993,null,null,null,"Sep",1.1000000000000001,14.4,1.1000000000000001,2.8]
["Oct","-",2.8666666666666667,37.4,"-",2.9333333333333336,9.9,null,null,null,"Oct",1.5,21.4,1.5,2.7]
["Nov","-",3.0333333333333332,81.2,"-",3.1,9.1999999999999993,null,null,null,"Nov",1.6,81.2,1.8,9.1]
["Dec","-",3.3666666666666667,84.8,"-",3.5333333333333332,10,null,null,null,"Dec",1.9,84.8,2.5,9.8000000000000007]
[null,null,null,null,null,null,null,null,null,null,"Annual",{"$f":"AVERAGE(L7:L18)","v":1.8500000000000003},{"$f":"MAX(M7:M18)","v":84.8},{"$f":"AVERAGE(N7:N18)","v":2.0083333333333333},{"$f":"MAX(O7:O18)","v":10.199999999999999}]
[]
[null,null,null,null,null,null,null,null,null,{"$f":"+A6","v":2023},"mg/Nm3","Monthly 1/2 hourly mean","Monthly 1/2 hourly maximum","Monthly daily mean","Monthly daily maximum"]
[null,null,null,null,null,null,null,null,null,"A2","Jan",0.9,68,0.9,2.2000000000000002]
[null,null,null,null,null,null,null,null,null,null,"Feb",1,24.4,1.2,7.8]
[null,null,null,null,null,null,null,null,null,null,"Mar",0.9,14,1.5,14]
[null,null,null,null,null,null,null,null,null,null,"Apr",0.8,9.1999999999999993,0.8,1.6]
[null,null,null,null,null,null,null,null,null,null,"May",1,20.100000000000001,1,2.6]
[null,null,null,null,null,null,null,null,null,null,"Jun",1,9.6999999999999993,1,1.8]
[null,null,null,null,null,null,null,null,null,null,"Jul",1.6,14.1,1.5,3.8]
[null,null,null,null,null,null,null,null,null,null,"Aug",1.2,15.1,1.2,3.4]
[null,null,null,null,null,null,null,null,null,null,"Sep",1.3,10.8,1.4,6.3]
[null,null,null,null,null,null,null,null,null,null,"Oct",0.3,10.8,0.5,4.0999999999999996]
[null,null,null,null,null,null,null,null,null,null,"Nov",0.5,15.6,0.5,1.1000000000000001]
[null,null,null,null,null,null,null,null,null,null,"Dec",0.6,11.4,0.6,1.6]
[null,null,null,null,null,null,null,null,null,null,"Annual",{"$f":"AVERAGE(L22:L33)","v":0.92499999999999993},{"$f":"MAX(M22:M33)","v":68},{"$f":"AVERAGE(N22:N33)","v":1.0083333333333333},{"$f":"MAX(O22:O33)","v":14}]
[]
[null,null,null,null,null,null,null,null,null,{"$f":"+A6","v":2023},"mg/Nm3","Monthly 1/2 hourly mean","Monthly 1/2 hourly maximum","Monthly daily mean","Monthly daily maximum"]
[null,null,null,null,null,null,null,null,null,"A3","Jan",9.8000000000000007,15.9,9.8000000000000007,11.7]
[null,null,null,null,null,null,null,null,null,null,"Feb",10.7,92.4,10.6,11.8]
[null,null,null,null,null,null,null,null,null,null,"Mar",9.3000000000000007,17,9.3000000000000007,11.6]
[null,null,null,null,null,null,null,null,null,null,"Apr",9.4,55.1,9.4,11.6]
[null,null,null,null,null,null,null,null,null,null,"May",9.6,46.3,9.4,11.1]
[null,null,null,null,null,null,null,null,null,null,"Jun",16.899999999999999,1685,18.100000000000001,97.9]
[null,null,null,null,null,null,null,null,null,null,"Jul",9.1999999999999993,560.6,9.1999999999999993,20.100000000000001]
[null,null,null,null,null,null,null,null,null,null,"Aug",8.9,18.100000000000001,8.8000000000000007,10.8]
[null,null,null,null,null,null,null,null,null,null,"Sep",7.2,14.8,7.2,9.6999999999999993]
[null,null,null,null,null,null,null,null,null,null,"Oct",6.8,37.4,6.8,9.9]
[null,null,null,null,null,null,null,null,null,null,"Nov",7,14.3,7,9.1999999999999993]
["Comments :",null,null,null,null,null,null,null,null,null,"Dec",7.6,14.3,7.5,10]
["As indicated ELV value in the table above means that no Nitrous Oxide (N2O) limit is set in the permit.  ",null,null,null,null,null,null,null,null,null,"Annual",{"$f":"AVERAGE(L37:L48)","v":9.3666666666666671},{"$f":"MAX(M37:M48)","v":1685},{"$f":"AVERAGE(N37:N48)","v":9.4249999999999989},{"$f":"MAX(O37:O48)","v":97.9}]
[]
[null,null,null,null,null,null,null,null,null,{"$f":"+A6","v":2023},"mg/Nm3","Monthly 1/2 hourly mean","Monthly 1/2 hourly maximum","Monthly daily mean","Monthly daily maximum"]
[null,null,null,null,null,null,null,null,null,"A4","Jan"]
[null,null,null,null,null,null,null,null,null,null,"Feb"]
[null,null,null,null,null,null,null,null,null,null,"Mar"]
[null,null,null,null,null,null,null,null,null,null,"Apr"]
[null,null,null,null,null,null,null,null,null,null,"May"]
[null,null,null,null,null,null,null,null,null,null,"Jun"]
[null,null,null,null,null,null,null,null,null,null,"Jul"]
[null,null,null,null,null,null,null,null,null,null,"Aug"]
[null,null,null,null,null,null,null,null,null,null,"Sep"]
[null,null,null,null,null,null,null,null,null,null,"Oct"]
[null,null,null,null,null,null,null,null,null,null,"Nov"]
[null,null,null,null,null,null,null,null,null,null,"Dec"]
[null,null,null,null,null,null,null,null,null,null,"Annual",{"$f":"AVERAGE(L52:L63)","v":{"$error":"#DIV/0!"}},{"$f":"MAX(M52:M63)","v":0},{"$f":"AVERAGE(N52:N63)","v":{"$error":"#DIV/0!"}},{"$f":"MAX(O52:O63)","v":0}]
[]
[null,null,null,null,null,null,null,null,null,{"$f":"+A6","v":2023},"mg/Nm3","Monthly 1/2 hourly mean","Monthly 1/2 hourly maximum","Monthly daily mean","Monthly daily maximum"]
[null,null,null,null,null,null,null,null,null,"A5","Jan"]
[null,null,null,null,null,null,null,null,null,null,"Feb"]
[null,null,null,null,null,null,null,null,null,null,"Mar"]
[null,null,null,null,null,null,null,null,null,null,"Apr"]
[null,null,null,null,null,null,null,null,null,null,"May"]
[null,null,null,null,null,null,null,null,null,null,"Jun"]
[null,null,null,null,null,null,null,null,null,null,"Jul"]
[null,null,null,null,null,null,null,null,null,null,"Aug"]
[null,null,null,null,null,null,null,null,null,null,"Sep"]
[null,null,null,null,null,null,null,null,null,null,"Oct"]
[null,null,null,null,null,null,null,null,null,null,"Nov"]
[null,null,null,null,null,null,null,null,null,null,"Dec"]
[null,null,null,null,null,null,null,null,null,null,"Annual",{"$f":"AVERAGE(L67:L78)","v":{"$error":"#DIV/0!"}},{"$f":"MAX(M67:M78)","v":0},{"$f":"AVERAGE(N67:N78)","v":{"$error":"#DIV/0!"}},{"$f":"MAX(O67:O78)","v":0}]